Department Family,Entity,Date,Expense type,Expense area,Supplier,Transaction number,Amount
DBT,ACAS,10/01/2024,PROFESSIONAL FEES,DDAT,BECHTLE LIMITED,POIN2146,456
DBT,ACAS,10/01/2024,COURIERS,DDAT,BECHTLE LIMITED,POIN2146,546
DBT,ACAS,10/01/2024,COURIERS,DDAT,BECHTLE LIMITED,POIN2146,2607.44
DBT,ACAS,10/01/2024,SYSTEM/EQUIPMENT MAINTENANCE,DDAT,BECHTLE LIMITED,POIN2146,13.02
DBT,ACAS,10/01/2024,COMPUTER HARDWARE,DDAT,BECHTLE LIMITED,POIN2146,648
DBT,ACAS,10/01/2024,COMPUTER HARDWARE,DDAT,BECHTLE LIMITED,POIN2146,72
DBT,ACAS,31/12/2023,PROFESSIONAL FEES,DISPUTE,LANGUAGE EMPIRE LTD,POIN2232,360
DBT,ACAS,31/12/2023,PROFESSIONAL FEES,DISPUTE,LANGUAGE EMPIRE LTD,POIN2232,1887.99
DBT,ACAS,31/12/2023,PROFESSIONAL FEES,ADVICE,LANGUAGE EMPIRE LTD,POIN2232,3131.09
DBT,ACAS,31/12/2023,PROFESSIONAL FEES,ADVICE,LANGUAGE EMPIRE LTD,POIN2233,465.85
DBT,ACAS,31/12/2023,PROFESSIONAL FEES,ADVICE,LANGUAGE EMPIRE LTD,POIN2233,1334.15
DBT,ACAS,23/01/2024,OCCUPATIONAL HEALTH SERVICE,F&G,FLEXIFORM BUSINESS FURNITURE LTD,POIN2234,916.87
DBT,ACAS,30/01/2024,EXTERNAL LEARNING,ODHR,TOTAL POLITICS GROUP,POIN2235,600
DBT,ACAS,30/01/2024,EXTERNAL LEARNING,ODHR,CIPP,POIN2236,297
DBT,ACAS,30/01/2024,EVALUATION OF OPS ACTIVITIES,ADVICE,SNAP SURVEYS LTD,POIN2237,525
DBT,ACAS,31/01/2024,PROFFESIONAL/SPECIALIST ADVICE,ADVICE,I F F RESEARCH,POIN2238,39551
DBT,ACAS,18/01/2024,COMPUTER HARDWARE,DDAT,DIGITAL DEVICES LIMITED,POIN2239,696.11
DBT,ACAS,18/01/2024,COMPUTER HARDWARE,DDAT,DIGITAL DEVICES LIMITED,POIN2239,77.36
DBT,ACAS,18/01/2024,COURIERS,DDAT,DIGITAL DEVICES LIMITED,POIN2239,7.2
DBT,ACAS,31/01/2024,CONTRACTOR OFF-PAYROLL IN IR35,STRATEGY,ALEXANDER MANN SOLUTIONS LTD,POIN2240,2771.68
DBT,ACAS,09/11/2023,OTHER RESEARCH,STRATEGY,UNIVERSITY OF WARWICK,POIN2241,2312.4
DBT,ACAS,31/01/2024,PUBLICITY,STRATEGY,MINISTRY OF JUSTICE,POIN2242,19962.48
DBT,ACAS,31/01/2024,OCCUPATIONAL HEALTH SERVICE,F&G,FLEXIFORM BUSINESS FURNITURE LTD,POIN2243,415.81
DBT,ACAS,31/01/2024,AGENCY STAFF,DISPUTE,ALEXANDER MANN SOLUTIONS LTD,POIN2244,662.1
DBT,ACAS,31/01/2024,AGENCY STAFF,DISPUTE,ALEXANDER MANN SOLUTIONS LTD,POIN2245,514.72
DBT,ACAS,31/01/2024,AGENCY STAFF,DISPUTE,ALEXANDER MANN SOLUTIONS LTD,POIN2246,648.68
DBT,ACAS,01/02/2024,SOFTWARE & LICENCES,DDAT,TECHDIO A/S,POIN2247,3420.85
DBT,ACAS,31/01/2024,OCCUPATIONAL HEALTH SERVICE,ODHR,TP HEALTH LTD,POIN2248,805
DBT,ACAS,02/02/2024,PROFESSIONAL FEES,DDAT,W3 PARTNERSHIP LTD,POIN2249,1.16
DBT,ACAS,02/02/2024,PROFESSIONAL FEES,DDAT,W3 PARTNERSHIP LTD,POIN2249,3600
DBT,ACAS,02/02/2024,PROFESSIONAL FEES,DDAT,W3 PARTNERSHIP LTD,POIN2249,1141.1
DBT,ACAS,02/02/2024,PROFESSIONAL FEES,DDAT,W3 PARTNERSHIP LTD,POIN2249,35.7
DBT,ACAS,31/01/2024,CONTRACTOR OFF-PAYROLL IN IR35,DDAT,ALEXANDER MANN SOLUTIONS LTD,POIN2250,8601
DBT,ACAS,31/01/2024,CONTRACTOR OFF-PAYROLL IN IR35,DDAT,ALEXANDER MANN SOLUTIONS LTD,POIN2251,4095.36
DBT,ACAS,31/01/2024,CONTRACTOR OFF-PAYROLL IN IR35,DDAT,ALEXANDER MANN SOLUTIONS LTD,POIN2252,2646.24
DBT,ACAS,31/01/2024,PROFESSIONAL FEES,DDAT,VERSION 1 SOLUTIONS LTD,POIN2254,5069.29
DBT,ACAS,31/01/2024,PROFESSIONAL FEES,DDAT,TISSKI LTD,POIN2255,32850
DBT,ACAS,31/01/2024,PROFESSIONAL FEES,DDAT,TISSKI LTD,POIN2256,2700
DBT,ACAS,26/01/2024,EXTERNAL LEARNING,ODHR,GBS CORPORATE TRAINING LTD,POIN2258,256.22
DBT,ACAS,31/01/2024,PUBLICITY,STRATEGY,CAMPAIGN MONITOR PTY LTD,POIN2259,4000
DBT,ACAS,31/01/2024,PUBLICITY,STRATEGY,CAMPAIGN MONITOR PTY LTD,POIN2259,8000
DBT,ACAS,18/01/2024,COMPUTER HARDWARE,DDAT,SUMILLION LTD,POIN2260,2472
DBT,ACAS,18/01/2024,COURIERS,DDAT,SUMILLION LTD,POIN2260,6
DBT,ACAS,31/01/2024,RECORDS STORAGE,DDAT,RESTORE RECORDS MANAGEMENT,POIN2261,272.02
DBT,ACAS,31/01/2024,RECORDS STORAGE,DDAT,RESTORE RECORDS MANAGEMENT,POIN2261,135.62
DBT,ACAS,31/01/2024,OCCUPATIONAL HEALTH SERVICE,F&G,FLEXIFORM BUSINESS FURNITURE LTD,POIN2263,898.8
DBT,ACAS,02/02/2024,OCCUPATIONAL HEALTH SERVICE,F&G,FLEXIFORM BUSINESS FURNITURE LTD,POIN2264,964.2
DBT,ACAS,31/01/2024,PROFESSIONAL FEES,DDAT,RISUAL LIMITED,POIN2265,10260
DBT,ACAS,31/01/2024,PROFESSIONAL FEES,DDAT,RISUAL LIMITED,POIN2265,960
DBT,ACAS,30/01/2024,OCCUPATIONAL HEALTH SERVICE,F&G,FLEXIFORM BUSINESS FURNITURE LTD,POIN2266,409.19
DBT,ACAS,02/02/2024,OCCUPATIONAL HEALTH SERVICE,F&G,FLEXIFORM BUSINESS FURNITURE LTD,POIN2267,409.19
DBT,ACAS,13/12/2023,EXTERNAL LEARNING,ODHR,EEF LTD T/A MAKE UK,POIN2268,2496.9
DBT,ACAS,01/02/2024,PROFESSIONAL FEES,DDAT,BECHTLE LIMITED,POIN2269,456
DBT,ACAS,01/02/2024,COURIERS,DDAT,BECHTLE LIMITED,POIN2269,1806
DBT,ACAS,01/02/2024,COURIERS,DDAT,BECHTLE LIMITED,POIN2269,7675.54
DBT,ACAS,01/02/2024,SYSTEM/EQUIPMENT MAINTENANCE,DDAT,BECHTLE LIMITED,POIN2269,60
DBT,ACAS,01/02/2024,COMPUTER HARDWARE,DDAT,BECHTLE LIMITED,POIN2269,648
DBT,ACAS,01/02/2024,COMPUTER HARDWARE,DDAT,BECHTLE LIMITED,POIN2269,72
DBT,ACAS,01/02/2024,COURIERS,DDAT,BECHTLE LIMITED,POIN2269,42
DBT,ACAS,01/02/2024,PROFESSIONAL FEES,DDAT,BECHTLE LIMITED,POIN2269,1083
DBT,ACAS,01/02/2024,SYSTEM/EQUIPMENT MAINTENANCE,DDAT,BECHTLE LIMITED,POIN2269,3.24
DBT,ACAS,01/02/2024,COMPUTER HARDWARE,DDAT,BECHTLE LIMITED,POIN2269,162
DBT,ACAS,01/02/2024,COMPUTER HARDWARE,DDAT,BECHTLE LIMITED,POIN2269,18
DBT,ACAS,08/02/2024,PROFESSIONAL FEES,DDAT,Canon (UK) Ltd,POIN2270,420
DBT,ACAS,08/02/2024,OTHER FEES TO OGD'S,STRATEGY,ALEXANDER MANN SOLUTIONS LTD,POIN2271,1847.77
DBT,ACAS,08/02/2024,OTHER FEES TO OGD'S,STRATEGY,ALEXANDER MANN SOLUTIONS LTD,POIN2271,3079.62
DBT,ACAS,08/02/2024,AGENCY STAFF,DISPUTE,ALEXANDER MANN SOLUTIONS LTD,POIN2272,648.68
DBT,ACAS,08/02/2024,AGENCY STAFF,DISPUTE,ALEXANDER MANN SOLUTIONS LTD,POIN2273,814.06
DBT,ACAS,08/02/2024,CONTRACTOR OFF-PAYROLL IN IR35,DDAT,ALEXANDER MANN SOLUTIONS LTD,POIN2274,2646.24
DBT,ACAS,08/02/2024,CONTRACTOR OFF-PAYROLL IN IR35,DDAT,ALEXANDER MANN SOLUTIONS LTD,POIN2275,4095.36
DBT,ACAS,31/01/2024,PROFESSIONAL FEES,DDAT,WYSER LTD,POIN2276,53430.05
DBT,ACAS,31/01/2024,PROFESSIONAL FEES,DDAT,WYSER LTD,POIN2276,6860.29
DBT,ACAS,31/01/2024,PROFESSIONAL FEES,DDAT,WYSER LTD,POIN2277,8634.06
DBT,ACAS,31/01/2024,PROFESSIONAL FEES,DDAT,WYSER LTD,POIN2277,72764.5
DBT,ACAS,31/01/2024,PROFESSIONAL FEES,DDAT,WYSER LTD,POIN2277,2400.88
DBT,ACAS,31/01/2024,PROFESSIONAL FEES,DDAT,WYSER LTD,POIN2277,2515.91
DBT,ACAS,08/02/2024,PROFESSIONAL FEES,DDAT,GAMMA TELECOM LIMITED,POIN2278,4585.32
DBT,ACAS,09/02/2024,MOBILE PHONES,DDAT,TELEFONICA UK LTD (O2),POIN2279,3061.42
DBT,ACAS,09/02/2024,MOBILE PHONES,DDAT,TELEFONICA UK LTD (O2),POIN2279,340.15
DBT,ACAS,06/02/2024,EXTERNAL LEARNING,ODHR,KNOWLEDGE EXCHANGE GROUP LTD,POIN2280,1472.76
DBT,ACAS,01/02/2024,PROFESSIONAL FEES,DDAT,SIRIUS OPEN SOURCE LIMITED,POIN2281,2560.87
DBT,ACAS,07/02/2024,PROFESSIONAL FEES,DDAT,VERSION 1 SOLUTIONS LTD,POIN2282,6490
DBT,ACAS,07/02/2024,PROFESSIONAL FEES,DDAT,VERSION 1 SOLUTIONS LTD,POIN2282,213.9
DBT,ACAS,31/01/2024,PROFESSIONAL FEES,DDAT,TISSKI LTD,POIN2283,2250
DBT,ACAS,31/01/2024,PROFESSIONAL FEES,DDAT,TISSKI LTD,POIN2284,2700
DBT,ACAS,31/01/2024,PROFESSIONAL FEES,DDAT,TISSKI LTD,POIN2284,4050
DBT,ACAS,31/01/2024,PROFESSIONAL FEES,DDAT,TISSKI LTD,POIN2284,2700
DBT,ACAS,08/02/2024,AGENCY STAFF,DDAT,ALEXANDER MANN SOLUTIONS LTD,POIN2285,4311.48
DBT,ACAS,08/02/2024,CONTRACTOR OFF-PAYROLL IN IR35,DDAT,ALEXANDER MANN SOLUTIONS LTD,POIN2286,3695.58
DBT,ACAS,08/02/2024,PROFESSIONAL FEES,F&G,UK SHARED BUSINESS SERVICES LTD,POIN2287,1300
DBT,ACAS,31/01/2024,PROFESSIONAL FEES,DDAT,TISSKI LTD,POIN2288,16200
DBT,ACAS,13/02/2024,EXTERNAL LEARNING - CSL,ODHR,KPMG LLP,POIN2289,3600
DBT,ACAS,12/02/2024,PROFESSIONAL FEES,DDAT,AXIS 12 LIMITED,POIN2290,926.4
DBT,ACAS,12/02/2024,PROFESSIONAL FEES,DDAT,AXIS 12 LIMITED,POIN2291,1426.8
DBT,ACAS,12/02/2024,PROFESSIONAL FEES,DDAT,AXIS 12 LIMITED,POIN2292,2079.6
DBT,ACAS,12/02/2024,PROFESSIONAL FEES,DDAT,AXIS 12 LIMITED,POIN2292,374.4
DBT,ACAS,12/02/2024,PROFESSIONAL FEES,DDAT,AXIS 12 LIMITED,POIN2293,868.8
DBT,ACAS,13/02/2024,PROFESSIONAL FEES,DDAT,PHOENIX SOFTWARE LTD,POIN2294,17298.25
DBT,ACAS,13/02/2024,PROFESSIONAL FEES,DDAT,PHOENIX SOFTWARE LTD,POIN2294,4164.23
DBT,ACAS,09/02/2024,EXTERNAL LEARNING - CSL,ODHR,KPMG LLP,POIN2295,269.81
DBT,ACAS,05/02/2024,LEGAL FEES,ADVICE,DLA PIPER UK LLP,POIN2296,12002.26
DBT,ACAS,31/01/2024,PROFESSIONAL FEES,DISPUTE,LANGUAGE EMPIRE LTD,POIN2299,1656
DBT,ACAS,31/01/2024,PROFESSIONAL FEES,ADVICE,LANGUAGE EMPIRE LTD,POIN2299,2400
DBT,ACAS,31/01/2024,PROFESSIONAL FEES,DISPUTE,LANGUAGE EMPIRE LTD,POIN2299,386.78
DBT,ACAS,31/01/2024,PROFESSIONAL FEES,ADVICE,LANGUAGE EMPIRE LTD,POIN2299,1788.45
DBT,ACAS,24/01/2024,PROFESSIONAL FEES,DDAT,DATAQUEST GROUP LIMITED,POIN2300,9796.13
DBT,ACAS,18/01/2024,CONTRACTOR OFF-PAYROLL IN IR35,DDAT,ALEXANDER MANN SOLUTIONS LTD,POIN2301,3695.58
DBT,ACAS,15/02/2024,CONTRACTOR OFF-PAYROLL IN IR35,DDAT,ALEXANDER MANN SOLUTIONS LTD,POIN2302,4095.36
DBT,ACAS,15/02/2024,CONTRACTOR OFF-PAYROLL IN IR35,DDAT,ALEXANDER MANN SOLUTIONS LTD,POIN2303,2646.24
DBT,ACAS,31/01/2024,OCCUPATIONAL HEALTH SERVICE,ODHR,TP HEALTH LTD,POIN2304,415.2
DBT,ACAS,31/01/2024,OCCUPATIONAL HEALTH SERVICE,ODHR,TP HEALTH LTD,POIN2304,363.6
DBT,ACAS,13/02/2024,COMPUTER HARDWARE,DDAT,SUMILLION LTD,POIN2305,764.4
DBT,ACAS,13/02/2024,COURIERS,DDAT,SUMILLION LTD,POIN2305,6
DBT,ACAS,07/12/2023,OTHER RESEARCH,STRATEGY,UNIVERSITY OF WESTMINSTER (TRADING) LTD,POIN2306,3000
DBT,ACAS,15/02/2024,AGENCY STAFF,DISPUTE,ALEXANDER MANN SOLUTIONS LTD,POIN2307,662.1
DBT,ACAS,15/02/2024,AGENCY STAFF,ADVICE,ALEXANDER MANN SOLUTIONS LTD,POIN2308,613.62
DBT,ACAS,15/02/2024,AGENCY STAFF,ADVICE,ALEXANDER MANN SOLUTIONS LTD,POIN2309,648.68
DBT,ACAS,15/02/2024,AGENCY STAFF,DISPUTE,ALEXANDER MANN SOLUTIONS LTD,POIN2310,648.68
DBT,ACAS,15/02/2024,OCCUPATIONAL HEALTH SERVICE,F&G,FLEXIFORM BUSINESS FURNITURE LTD,POIN2311,681.52
DBT,ACAS,15/02/2024,SOFTWARE & LICENCES,DDAT,PROSPERON NETWORKS LTD,POIN2314,20073.12
DBT,ACAS,15/02/2024,EXTERNAL LEARNING - CSL,ODHR,KPMG LLP,POIN2315,2103.6
DBT,ACAS,16/02/2024,PUBLICITY,ADVICE,GC BUSINESS GROWTH HUB T/A GM BUSINESS S,POIN2316,2400
DBT,ACAS,15/02/2024,AGENCY STAFF,DDAT,ALEXANDER MANN SOLUTIONS LTD,POIN2317,4311.48
DBT,ACAS,15/02/2024,CONTRACTOR OFF-PAYROLL IN IR35,DDAT,ALEXANDER MANN SOLUTIONS LTD,POIN2318,1478.23
DBT,ACAS,15/02/2024,EXTERNAL LEARNING,ODHR,THE WHITEHALL & INDUSTRY GROUP,POIN2319,540
DBT,ACAS,15/02/2024,CONTRACTOR OFF-PAYROLL IN IR35,DDAT,ALEXANDER MANN SOLUTIONS LTD,POIN2320,4300.5
DBT,ACAS,15/02/2024,CONTRACTOR OFF-PAYROLL IN IR35,STRATEGY,ALEXANDER MANN SOLUTIONS LTD,POIN2321,4850.44
DBT,ACAS,12/02/2024,EXTERNAL LEARNING - CSL,ODHR,ERNST & YOUNG LLP,POIN2322,1626.3
DBT,ACAS,12/02/2024,EXTERNAL LEARNING - CSL,ODHR,ERNST & YOUNG LLP,POIN2322,2866.5
DBT,ACAS,08/02/2024,AGENCY STAFF,ADVICE,ALEXANDER MANN SOLUTIONS LTD,POIN2323,613.62
DBT,ACAS,24/01/2024,STAFF RECRUITMENT COSTS,ODHR,�AI RECRUITMENT TECHNOLOGIES LIMITED T/A,POIN2324,42000
DBT,ACAS,08/02/2024,AGENCY STAFF,ADVICE,ALEXANDER MANN SOLUTIONS LTD,POIN2325,613.62
DBT,ACAS,16/02/2024,SOFTWARE & LICENCES,DDAT,DEPARTMENT FOR ENERGY SECURITY,POIN2326,1536.06
DBT,ACAS,16/02/2024,SOFTWARE & LICENCES,DDAT,DEPARTMENT FOR ENERGY SECURITY,POIN2326,-1536.06
DBT,ACAS,16/02/2024,EXTERNAL LEARNING - CSL,ODHR,ERNST & YOUNG LLP,POIN2328,3529.63
DBT,ACAS,16/02/2024,LEARNING RESOURCE MATERIALS,ODHR,ERNST & YOUNG LLP,POIN2329,638.4
DBT,ACAS,16/02/2024,EXTERNAL LEARNING - CSL,ODHR,ERNST & YOUNG LLP,POIN2330,1345.2
DBT,ACAS,16/02/2024,EXTERNAL LEARNING - CSL,ODHR,ERNST & YOUNG LLP,POIN2330,-1345.2
DBT,ACAS,19/02/2024,SOFTWARE & LICENCES,DDAT,SNAP SURVEYS LTD,POIN2331,1188
DBT,ACAS,19/02/2024,SOFTWARE & LICENCES,DDAT,SNAP SURVEYS LTD,POIN2331,498
DBT,ACAS,19/02/2024,SOFTWARE & LICENCES,DDAT,SNAP SURVEYS LTD,POIN2331,498
DBT,ACAS,19/02/2024,SOFTWARE & LICENCES,DDAT,SNAP SURVEYS LTD,POIN2331,498
DBT,ACAS,19/02/2024,SOFTWARE & LICENCES,DDAT,SNAP SURVEYS LTD,POIN2331,870
DBT,ACAS,13/02/2024,EXTERNAL LEARNING,ODHR,CIPD ENTERPRISES LIMITED,POIN2333,2553
DBT,ACAS,19/02/2024,PROFESSIONAL FEES,DDAT,BIZZDESIGN UK LTD,POIN2334,281.27
DBT,ACAS,19/02/2024,PROFESSIONAL FEES,DDAT,BIZZDESIGN UK LTD,POIN2334,5625.03
DBT,ACAS,20/02/2024,EXTERNAL LEARNING,ODHR,IRMS LTD,POIN2335,870
DBT,ACAS,20/02/2024,EXTERNAL LEARNING,ODHR,IRMS LTD,POIN2335,-870
DBT,ACAS,31/01/2024,EXTERNAL LEARNING,ADVICE,PROFESSIONAL DEVELOPMENT GROUP�,POIN2336,828
DBT,ACAS,20/02/2024,EXTERNAL LEARNING,ODHR,REC,POIN2337,357.6
DBT,ACAS,20/02/2024,EXTERNAL LEARNING,ODHR,REC,POIN2337,-357.6
DBT,ACAS,01/12/2023,SOFTWARE & LICENCES,F&G,IRIS SOFTWARE LTD,POIN2338,7283.7
DBT,ACAS,02/10/2023,SOFTWARE & LICENCES,F&G,IRIS SOFTWARE LTD,POIN2339,308.74
DBT,ACAS,02/10/2023,SOFTWARE & LICENCES,F&G,IRIS SOFTWARE LTD,POIN2339,-308.74
DBT,ACAS,20/02/2024,SOFTWARE & LICENCES,DDAT,DEPARTMENT FOR ENERGY SECURITY,POIN2340,384.04
DBT,ACAS,20/02/2024,SOFTWARE & LICENCES,DDAT,DEPARTMENT FOR ENERGY SECURITY,POIN2340,384.04
DBT,ACAS,20/02/2024,SOFTWARE & LICENCES,DDAT,DEPARTMENT FOR ENERGY SECURITY,POIN2340,384.03
DBT,ACAS,20/02/2024,CONTRACTOR OFF-PAYROLL IN IR35,ODHR,MICHAEL PAGE,POIN2341,21317.4
DBT,ACAS,13/02/2024,AGENCY STAFF,DDAT,BECHTLE LIMITED,POIN2342,5922
DBT,ACAS,13/02/2024,AGENCY STAFF,DDAT,BECHTLE LIMITED,POIN2342,4737.6
DBT,ACAS,13/02/2024,AGENCY STAFF,DDAT,BECHTLE LIMITED,POIN2342,2368.8
DBT,ACAS,20/02/2024,PROFESSIONAL FEES,DDAT,BECHTLE LIMITED,POIN2343,228
DBT,ACAS,20/02/2024,COURIERS,DDAT,BECHTLE LIMITED,POIN2343,1596
DBT,ACAS,20/02/2024,COURIERS,DDAT,BECHTLE LIMITED,POIN2343,3725.69
DBT,ACAS,20/02/2024,SYSTEM/EQUIPMENT MAINTENANCE,DDAT,BECHTLE LIMITED,POIN2343,60
DBT,ACAS,20/02/2024,COMPUTER HARDWARE,DDAT,BECHTLE LIMITED,POIN2343,648
DBT,ACAS,20/02/2024,COMPUTER HARDWARE,DDAT,BECHTLE LIMITED,POIN2343,72
DBT,ACAS,20/02/2024,COURIERS,DDAT,BECHTLE LIMITED,POIN2343,336
DBT,ACAS,20/02/2024,COURIERS,DDAT,BECHTLE LIMITED,POIN2343,721.15
DBT,ACAS,20/02/2024,SYSTEM/EQUIPMENT MAINTENANCE,DDAT,BECHTLE LIMITED,POIN2343,38.58
DBT,ACAS,20/02/2024,COMPUTER HARDWARE,DDAT,BECHTLE LIMITED,POIN2343,162
DBT,ACAS,20/02/2024,COMPUTER HARDWARE,DDAT,BECHTLE LIMITED,POIN2343,18
DBT,ACAS,20/02/2024,PROFESSIONAL FEES,DDAT,BECHTLE LIMITED,POIN2343,627
DBT,ACAS,13/02/2024,AGENCY STAFF,DDAT,BECHTLE LIMITED,POIN2344,1184.4
DBT,ACAS,13/02/2024,AGENCY STAFF,DDAT,BECHTLE LIMITED,POIN2344,1974
DBT,ACAS,13/02/2024,AGENCY STAFF,DDAT,BECHTLE LIMITED,POIN2345,5132.4
DBT,ACAS,19/02/2024,GOVT SOLICITORS FEES,CO,GOVERNMENT LEGAL DEPARTMENT,POIN2346,3057.12
DBT,ACAS,16/02/2024,OCCUPATIONAL HEALTH SERVICE,F&G,FLEXIFORM BUSINESS FURNITURE LTD,POIN2347,409.19
DBT,ACAS,16/02/2024,OCCUPATIONAL HEALTH SERVICE,F&G,FLEXIFORM BUSINESS FURNITURE LTD,POIN2348,1125
DBT,ACAS,31/12/2023,PUBLIC TRANSPORT & PARKING,DDAT,CORPORATE TRAVEL MANAGEMENTLIMITED,PINV2348,103.9
DBT,ACAS,31/12/2023,PUBLIC TRANSPORT & PARKING,STRATEGY,CORPORATE TRAVEL MANAGEMENTLIMITED,PINV2348,-92.4
DBT,ACAS,31/12/2023,PUBLIC TRANSPORT & PARKING,DDAT,CORPORATE TRAVEL MANAGEMENTLIMITED,PINV2348,27.7
DBT,ACAS,31/12/2023,PUBLIC TRANSPORT & PARKING,DDAT,CORPORATE TRAVEL MANAGEMENTLIMITED,PINV2348,90
DBT,ACAS,31/12/2023,HOTEL EXPENSES,F&G,CORPORATE TRAVEL MANAGEMENTLIMITED,PINV2348,98.1
DBT,ACAS,31/12/2023,PUBLIC TRANSPORT & PARKING,ODHR,CORPORATE TRAVEL MANAGEMENTLIMITED,PINV2348,140.2
DBT,ACAS,31/12/2023,PUBLIC TRANSPORT & PARKING,ODHR,CORPORATE TRAVEL MANAGEMENTLIMITED,PINV2348,318.7
DBT,ACAS,31/12/2023,PUBLIC TRANSPORT & PARKING,ODHR,CORPORATE TRAVEL MANAGEMENTLIMITED,PINV2348,130.7
DBT,ACAS,31/12/2023,PUBLIC TRANSPORT & PARKING,ODHR,CORPORATE TRAVEL MANAGEMENTLIMITED,PINV2348,286.4
DBT,ACAS,31/12/2023,PUBLIC TRANSPORT & PARKING,STRATEGY,CORPORATE TRAVEL MANAGEMENTLIMITED,PINV2348,176.6
DBT,ACAS,31/12/2023,PUBLIC TRANSPORT & PARKING,STRATEGY,CORPORATE TRAVEL MANAGEMENTLIMITED,PINV2348,176.4
DBT,ACAS,31/12/2023,PUBLIC TRANSPORT & PARKING,ADVICE,CORPORATE TRAVEL MANAGEMENTLIMITED,PINV2348,95.3
DBT,ACAS,31/12/2023,PUBLIC TRANSPORT & PARKING,DISPUTE,CORPORATE TRAVEL MANAGEMENTLIMITED,PINV2348,48.9
DBT,ACAS,31/12/2023,PUBLIC TRANSPORT & PARKING,ODHR,CORPORATE TRAVEL MANAGEMENTLIMITED,PINV2348,282.6
DBT,ACAS,31/12/2023,PUBLIC TRANSPORT & PARKING,DISPUTE,CORPORATE TRAVEL MANAGEMENTLIMITED,PINV2348,-18.6
DBT,ACAS,31/12/2023,PUBLIC TRANSPORT & PARKING,F&G,CORPORATE TRAVEL MANAGEMENTLIMITED,PINV2348,-53.7
DBT,ACAS,31/12/2023,PUBLIC TRANSPORT & PARKING,F&G,CORPORATE TRAVEL MANAGEMENTLIMITED,PINV2348,-33.7
DBT,ACAS,31/12/2023,HOTEL EXPENSES,DISPUTE,CORPORATE TRAVEL MANAGEMENTLIMITED,PINV2348,119.3
DBT,ACAS,31/12/2023,HOTEL EXPENSES,DDAT,CORPORATE TRAVEL MANAGEMENTLIMITED,PINV2348,553
DBT,ACAS,31/12/2023,PUBLIC TRANSPORT & PARKING,STRATEGY,CORPORATE TRAVEL MANAGEMENTLIMITED,PINV2348,115.2
DBT,ACAS,31/12/2023,PUBLIC TRANSPORT & PARKING,STRATEGY,CORPORATE TRAVEL MANAGEMENTLIMITED,PINV2348,-37.4
DBT,ACAS,31/12/2023,PUBLIC TRANSPORT & PARKING,ODHR,CORPORATE TRAVEL MANAGEMENTLIMITED,PINV2348,258.8
DBT,ACAS,31/12/2023,PUBLIC TRANSPORT & PARKING,STRATEGY,CORPORATE TRAVEL MANAGEMENTLIMITED,PINV2348,175.2
DBT,ACAS,31/12/2023,PUBLIC TRANSPORT & PARKING,STRATEGY,CORPORATE TRAVEL MANAGEMENTLIMITED,PINV2348,15.2
DBT,ACAS,31/12/2023,HOTEL EXPENSES,DISPUTE,CORPORATE TRAVEL MANAGEMENTLIMITED,PINV2348,284.4
DBT,ACAS,31/12/2023,HOTEL EXPENSES,DISPUTE,CORPORATE TRAVEL MANAGEMENTLIMITED,PINV2348,85
DBT,ACAS,31/12/2023,PUBLIC TRANSPORT & PARKING,DISPUTE,CORPORATE TRAVEL MANAGEMENTLIMITED,PINV2348,-21.8
DBT,ACAS,31/12/2023,PUBLIC TRANSPORT & PARKING,DISPUTE,CORPORATE TRAVEL MANAGEMENTLIMITED,PINV2348,-47.5
DBT,ACAS,31/12/2023,PUBLIC TRANSPORT & PARKING,DISPUTE,CORPORATE TRAVEL MANAGEMENTLIMITED,PINV2348,-42.5
DBT,ACAS,31/12/2023,PUBLIC TRANSPORT & PARKING,DISPUTE,CORPORATE TRAVEL MANAGEMENTLIMITED,PINV2348,-16.8
DBT,ACAS,31/12/2023,PUBLIC TRANSPORT & PARKING,DISPUTE,CORPORATE TRAVEL MANAGEMENTLIMITED,PINV2348,-81.2
DBT,ACAS,31/12/2023,PUBLIC TRANSPORT & PARKING,DDAT,CORPORATE TRAVEL MANAGEMENTLIMITED,PINV2348,48.9
DBT,ACAS,31/12/2023,PUBLIC TRANSPORT & PARKING,DISPUTE,CORPORATE TRAVEL MANAGEMENTLIMITED,PINV2348,45.6
DBT,ACAS,31/12/2023,PUBLIC TRANSPORT & PARKING,F&G,CORPORATE TRAVEL MANAGEMENTLIMITED,PINV2348,88.2
DBT,ACAS,31/12/2023,PUBLIC TRANSPORT & PARKING,ODHR,CORPORATE TRAVEL MANAGEMENTLIMITED,PINV2348,206.5
DBT,ACAS,31/12/2023,PUBLIC TRANSPORT & PARKING,DISPUTE,CORPORATE TRAVEL MANAGEMENTLIMITED,PINV2348,-94.5
DBT,ACAS,31/12/2023,PUBLIC TRANSPORT & PARKING,DDAT,CORPORATE TRAVEL MANAGEMENTLIMITED,PINV2348,185
DBT,ACAS,31/12/2023,PUBLIC TRANSPORT & PARKING,ODHR,CORPORATE TRAVEL MANAGEMENTLIMITED,PINV2348,214.5
DBT,ACAS,31/12/2023,PUBLIC TRANSPORT & PARKING,ADVICE,CORPORATE TRAVEL MANAGEMENTLIMITED,PINV2348,54.9
DBT,ACAS,31/12/2023,PUBLIC TRANSPORT & PARKING,ODHR,CORPORATE TRAVEL MANAGEMENTLIMITED,PINV2348,21.9
DBT,ACAS,31/12/2023,HOTEL EXPENSES,DISPUTE,CORPORATE TRAVEL MANAGEMENTLIMITED,PINV2348,85
DBT,ACAS,31/12/2023,HOTEL EXPENSES,DDAT,CORPORATE TRAVEL MANAGEMENTLIMITED,PINV2348,299
DBT,ACAS,31/12/2023,HOTEL EXPENSES,DDAT,CORPORATE TRAVEL MANAGEMENTLIMITED,PINV2348,299
DBT,ACAS,31/12/2023,HOTEL EXPENSES,ADVICE,CORPORATE TRAVEL MANAGEMENTLIMITED,PINV2348,130
DBT,ACAS,31/12/2023,PUBLIC TRANSPORT & PARKING,STRATEGY,CORPORATE TRAVEL MANAGEMENTLIMITED,PINV2348,274
DBT,ACAS,31/12/2023,PUBLIC TRANSPORT & PARKING,ADVICE,CORPORATE TRAVEL MANAGEMENTLIMITED,PINV2348,158.7
DBT,ACAS,31/12/2023,PUBLIC TRANSPORT & PARKING,ADVICE,CORPORATE TRAVEL MANAGEMENTLIMITED,PINV2348,37.5
DBT,ACAS,31/12/2023,PUBLIC TRANSPORT & PARKING,ODHR,CORPORATE TRAVEL MANAGEMENTLIMITED,PINV2348,258
DBT,ACAS,31/12/2023,PUBLIC TRANSPORT & PARKING,F&G,CORPORATE TRAVEL MANAGEMENTLIMITED,PINV2348,276.6
DBT,ACAS,31/12/2023,PUBLIC TRANSPORT & PARKING,ODHR,CORPORATE TRAVEL MANAGEMENTLIMITED,PINV2348,367.9
DBT,ACAS,31/12/2023,PUBLIC TRANSPORT & PARKING,F&G,CORPORATE TRAVEL MANAGEMENTLIMITED,PINV2348,137.5
DBT,ACAS,31/12/2023,PUBLIC TRANSPORT & PARKING,F&G,CORPORATE TRAVEL MANAGEMENTLIMITED,PINV2348,203.2
DBT,ACAS,31/12/2023,PUBLIC TRANSPORT & PARKING,ADVICE,CORPORATE TRAVEL MANAGEMENTLIMITED,PINV2348,22.5
DBT,ACAS,31/12/2023,PUBLIC TRANSPORT & PARKING,ADVICE,CORPORATE TRAVEL MANAGEMENTLIMITED,PINV2348,45.5
DBT,ACAS,31/12/2023,PUBLIC TRANSPORT & PARKING,ADVICE,CORPORATE TRAVEL MANAGEMENTLIMITED,PINV2348,192.8
DBT,ACAS,31/12/2023,PUBLIC TRANSPORT & PARKING,F&G,CORPORATE TRAVEL MANAGEMENTLIMITED,PINV2348,55.3
DBT,ACAS,31/12/2023,PUBLIC TRANSPORT & PARKING,ADVICE,CORPORATE TRAVEL MANAGEMENTLIMITED,PINV2348,158.7
DBT,ACAS,31/12/2023,PUBLIC TRANSPORT & PARKING,STRATEGY,CORPORATE TRAVEL MANAGEMENTLIMITED,PINV2348,324.7
DBT,ACAS,31/12/2023,PUBLIC TRANSPORT & PARKING,ADVICE,CORPORATE TRAVEL MANAGEMENTLIMITED,PINV2348,-94.5
DBT,ACAS,31/12/2023,PUBLIC TRANSPORT & PARKING,ODHR,CORPORATE TRAVEL MANAGEMENTLIMITED,PINV2348,-160.7
DBT,ACAS,31/12/2023,PUBLIC TRANSPORT & PARKING,ODHR,CORPORATE TRAVEL MANAGEMENTLIMITED,PINV2348,-47.5
DBT,ACAS,31/12/2023,HOTEL EXPENSES,ADVICE,CORPORATE TRAVEL MANAGEMENTLIMITED,PINV2348,139.17
DBT,ACAS,31/12/2023,PUBLIC TRANSPORT & PARKING,ODHR,CORPORATE TRAVEL MANAGEMENTLIMITED,PINV2348,-97.3
DBT,ACAS,31/12/2023,HOTEL EXPENSES,DISPUTE,CORPORATE TRAVEL MANAGEMENTLIMITED,PINV2348,85
DBT,ACAS,31/12/2023,HOTEL EXPENSES,DISPUTE,CORPORATE TRAVEL MANAGEMENTLIMITED,PINV2348,162
DBT,ACAS,31/12/2023,PUBLIC TRANSPORT & PARKING,STRATEGY,CORPORATE TRAVEL MANAGEMENTLIMITED,PINV2348,30.7
DBT,ACAS,31/12/2023,HOTEL EXPENSES,ADVICE,CORPORATE TRAVEL MANAGEMENTLIMITED,PINV2348,43.12
DBT,ACAS,31/12/2023,PUBLIC TRANSPORT & PARKING,DISPUTE,CORPORATE TRAVEL MANAGEMENTLIMITED,PINV2348,365.1
DBT,ACAS,31/12/2023,PUBLIC TRANSPORT & PARKING,ODHR,CORPORATE TRAVEL MANAGEMENTLIMITED,PINV2348,187.7
DBT,ACAS,31/12/2023,PUBLIC TRANSPORT & PARKING,ODHR,CORPORATE TRAVEL MANAGEMENTLIMITED,PINV2348,391.6
DBT,ACAS,31/12/2023,PUBLIC TRANSPORT & PARKING,ADVICE,CORPORATE TRAVEL MANAGEMENTLIMITED,PINV2348,97.7
DBT,ACAS,31/12/2023,PUBLIC TRANSPORT & PARKING,ADVICE,CORPORATE TRAVEL MANAGEMENTLIMITED,PINV2348,158.7
DBT,ACAS,31/12/2023,PUBLIC TRANSPORT & PARKING,DISPUTE,CORPORATE TRAVEL MANAGEMENTLIMITED,PINV2348,112.6
DBT,ACAS,31/12/2023,PUBLIC TRANSPORT & PARKING,DISPUTE,CORPORATE TRAVEL MANAGEMENTLIMITED,PINV2348,71.1
DBT,ACAS,31/12/2023,PUBLIC TRANSPORT & PARKING,ADVICE,CORPORATE TRAVEL MANAGEMENTLIMITED,PINV2348,-56.7
DBT,ACAS,31/12/2023,PUBLIC TRANSPORT & PARKING,ADVICE,CORPORATE TRAVEL MANAGEMENTLIMITED,PINV2348,-140.1
DBT,ACAS,31/12/2023,PUBLIC TRANSPORT & PARKING,ADVICE,CORPORATE TRAVEL MANAGEMENTLIMITED,PINV2348,-34.5
DBT,ACAS,31/12/2023,PUBLIC TRANSPORT & PARKING,DISPUTE,CORPORATE TRAVEL MANAGEMENTLIMITED,PINV2348,48.9
DBT,ACAS,31/12/2023,PUBLIC TRANSPORT & PARKING,DISPUTE,CORPORATE TRAVEL MANAGEMENTLIMITED,PINV2348,42.8
DBT,ACAS,31/12/2023,PUBLIC TRANSPORT & PARKING,DISPUTE,CORPORATE TRAVEL MANAGEMENTLIMITED,PINV2348,42.8
DBT,ACAS,31/12/2023,HOTEL EXPENSES,ADVICE,CORPORATE TRAVEL MANAGEMENTLIMITED,PINV2348,47.71
DBT,ACAS,31/12/2023,PUBLIC TRANSPORT & PARKING,DISPUTE,CORPORATE TRAVEL MANAGEMENTLIMITED,PINV2348,-47.5
DBT,ACAS,31/12/2023,PUBLIC TRANSPORT & PARKING,ODHR,CORPORATE TRAVEL MANAGEMENTLIMITED,PINV2348,258.8
DBT,ACAS,31/12/2023,PUBLIC TRANSPORT & PARKING,ADVICE,CORPORATE TRAVEL MANAGEMENTLIMITED,PINV2348,-285.2
DBT,ACAS,31/12/2023,PUBLIC TRANSPORT & PARKING,DISPUTE,CORPORATE TRAVEL MANAGEMENTLIMITED,PINV2348,-21.8
DBT,ACAS,31/12/2023,PUBLIC TRANSPORT & PARKING,DISPUTE,CORPORATE TRAVEL MANAGEMENTLIMITED,PINV2348,-16.8
DBT,ACAS,31/12/2023,PUBLIC TRANSPORT & PARKING,ADVICE,CORPORATE TRAVEL MANAGEMENTLIMITED,PINV2348,82.8
DBT,ACAS,31/12/2023,PUBLIC TRANSPORT & PARKING,ADVICE,CORPORATE TRAVEL MANAGEMENTLIMITED,PINV2348,54.5
DBT,ACAS,31/12/2023,HOTEL EXPENSES,STRATEGY,CORPORATE TRAVEL MANAGEMENTLIMITED,PINV2348,273.2
DBT,ACAS,31/12/2023,HOTEL EXPENSES,DDAT,CORPORATE TRAVEL MANAGEMENTLIMITED,PINV2348,192.6
DBT,ACAS,31/12/2023,PUBLIC TRANSPORT & PARKING,STRATEGY,CORPORATE TRAVEL MANAGEMENTLIMITED,PINV2348,240.7
DBT,ACAS,31/12/2023,HOTEL EXPENSES,STRATEGY,CORPORATE TRAVEL MANAGEMENTLIMITED,PINV2348,409.51
DBT,ACAS,31/12/2023,HOTEL EXPENSES,STRATEGY,CORPORATE TRAVEL MANAGEMENTLIMITED,PINV2348,409.51
DBT,ACAS,31/12/2023,PUBLIC TRANSPORT & PARKING,STRATEGY,CORPORATE TRAVEL MANAGEMENTLIMITED,PINV2348,12.2
DBT,ACAS,31/12/2023,PUBLIC TRANSPORT & PARKING,ODHR,CORPORATE TRAVEL MANAGEMENTLIMITED,PINV2348,194.8
DBT,ACAS,31/12/2023,PUBLIC TRANSPORT & PARKING,ODHR,CORPORATE TRAVEL MANAGEMENTLIMITED,PINV2348,280.4
DBT,ACAS,31/12/2023,HOTEL EXPENSES,DDAT,CORPORATE TRAVEL MANAGEMENTLIMITED,PINV2348,198
DBT,ACAS,31/12/2023,HOTEL EXPENSES,STRATEGY,CORPORATE TRAVEL MANAGEMENTLIMITED,PINV2348,366.8
DBT,ACAS,31/12/2023,HOTEL EXPENSES,ODHR,CORPORATE TRAVEL MANAGEMENTLIMITED,PINV2348,330
DBT,ACAS,31/12/2023,HOTEL EXPENSES,F&G,CORPORATE TRAVEL MANAGEMENTLIMITED,PINV2348,80
DBT,ACAS,31/12/2023,HOTEL EXPENSES,STRATEGY,CORPORATE TRAVEL MANAGEMENTLIMITED,PINV2348,187
DBT,ACAS,31/12/2023,HOTEL EXPENSES,ODHR,CORPORATE TRAVEL MANAGEMENTLIMITED,PINV2348,349.5
DBT,ACAS,31/12/2023,HOTEL EXPENSES,F&G,CORPORATE TRAVEL MANAGEMENTLIMITED,PINV2348,99
DBT,ACAS,31/12/2023,HOTEL EXPENSES,ODHR,CORPORATE TRAVEL MANAGEMENTLIMITED,PINV2348,185.2
DBT,ACAS,31/12/2023,PUBLIC TRANSPORT & PARKING,DISPUTE,CORPORATE TRAVEL MANAGEMENTLIMITED,PINV2348,100.7
DBT,ACAS,31/12/2023,PUBLIC TRANSPORT & PARKING,DISPUTE,CORPORATE TRAVEL MANAGEMENTLIMITED,PINV2348,385.6
DBT,ACAS,31/12/2023,PUBLIC TRANSPORT & PARKING,ODHR,CORPORATE TRAVEL MANAGEMENTLIMITED,PINV2348,130.8
DBT,ACAS,31/12/2023,PUBLIC TRANSPORT & PARKING,DDAT,CORPORATE TRAVEL MANAGEMENTLIMITED,PINV2348,166.6
DBT,ACAS,31/12/2023,PUBLIC TRANSPORT & PARKING,STRATEGY,CORPORATE TRAVEL MANAGEMENTLIMITED,PINV2348,393.8
DBT,ACAS,31/12/2023,PUBLIC TRANSPORT & PARKING,DISPUTE,CORPORATE TRAVEL MANAGEMENTLIMITED,PINV2348,217.3
DBT,ACAS,31/12/2023,PUBLIC TRANSPORT & PARKING,DISPUTE,CORPORATE TRAVEL MANAGEMENTLIMITED,PINV2348,209.1
DBT,ACAS,31/12/2023,PUBLIC TRANSPORT & PARKING,F&G,CORPORATE TRAVEL MANAGEMENTLIMITED,PINV2348,53.9
DBT,ACAS,31/12/2023,PUBLIC TRANSPORT & PARKING,DISPUTE,CORPORATE TRAVEL MANAGEMENTLIMITED,PINV2348,-19.1
DBT,ACAS,31/12/2023,PUBLIC TRANSPORT & PARKING,DISPUTE,CORPORATE TRAVEL MANAGEMENTLIMITED,PINV2348,214.5
DBT,ACAS,31/12/2023,HOTEL EXPENSES,F&G,CORPORATE TRAVEL MANAGEMENTLIMITED,PINV2348,165
DBT,ACAS,31/12/2023,HOTEL EXPENSES,ODHR,CORPORATE TRAVEL MANAGEMENTLIMITED,PINV2348,197.8
DBT,ACAS,31/12/2023,HOTEL EXPENSES,STRATEGY,CORPORATE TRAVEL MANAGEMENTLIMITED,PINV2348,202.5
DBT,ACAS,31/12/2023,HOTEL EXPENSES,STRATEGY,CORPORATE TRAVEL MANAGEMENTLIMITED,PINV2348,374.4
DBT,ACAS,31/12/2023,HOTEL EXPENSES,ODHR,CORPORATE TRAVEL MANAGEMENTLIMITED,PINV2348,205.2
DBT,ACAS,31/12/2023,HOTEL EXPENSES,ODHR,CORPORATE TRAVEL MANAGEMENTLIMITED,PINV2348,197.8
DBT,ACAS,31/12/2023,HOTEL EXPENSES,ODHR,CORPORATE TRAVEL MANAGEMENTLIMITED,PINV2348,133.7
DBT,ACAS,31/12/2023,HOTEL EXPENSES,DISPUTE,CORPORATE TRAVEL MANAGEMENTLIMITED,PINV2348,85
DBT,ACAS,31/12/2023,HOTEL EXPENSES,ODHR,CORPORATE TRAVEL MANAGEMENTLIMITED,PINV2348,197.8
DBT,ACAS,31/12/2023,HOTEL EXPENSES,ODHR,CORPORATE TRAVEL MANAGEMENTLIMITED,PINV2348,190.8
DBT,ACAS,31/12/2023,HOTEL EXPENSES,STRATEGY,CORPORATE TRAVEL MANAGEMENTLIMITED,PINV2348,388.4
DBT,ACAS,31/12/2023,HOTEL EXPENSES,STRATEGY,CORPORATE TRAVEL MANAGEMENTLIMITED,PINV2348,428.9
DBT,ACAS,31/12/2023,HOTEL EXPENSES,ADVICE,CORPORATE TRAVEL MANAGEMENTLIMITED,PINV2348,247.65
DBT,ACAS,31/12/2023,HOTEL EXPENSES,ODHR,CORPORATE TRAVEL MANAGEMENTLIMITED,PINV2348,194
DBT,ACAS,31/12/2023,HOTEL EXPENSES,ODHR,CORPORATE TRAVEL MANAGEMENTLIMITED,PINV2348,197.8
DBT,ACAS,31/12/2023,HOTEL EXPENSES,STRATEGY,CORPORATE TRAVEL MANAGEMENTLIMITED,PINV2348,202.5
DBT,ACAS,31/12/2023,HOTEL EXPENSES,ODHR,CORPORATE TRAVEL MANAGEMENTLIMITED,PINV2348,190.8
DBT,ACAS,31/12/2023,HOTEL EXPENSES,ODHR,CORPORATE TRAVEL MANAGEMENTLIMITED,PINV2348,197.8
DBT,ACAS,31/12/2023,HOTEL EXPENSES,ODHR,CORPORATE TRAVEL MANAGEMENTLIMITED,PINV2348,197.8
DBT,ACAS,31/12/2023,PUBLIC TRANSPORT & PARKING,ADVICE,CORPORATE TRAVEL MANAGEMENTLIMITED,PINV2348,29.9
DBT,ACAS,31/12/2023,PUBLIC TRANSPORT & PARKING,CAC,CORPORATE TRAVEL MANAGEMENTLIMITED,PINV2348,43.8
DBT,ACAS,31/12/2023,PUBLIC TRANSPORT & PARKING,ADVICE,CORPORATE TRAVEL MANAGEMENTLIMITED,PINV2348,158.7
DBT,ACAS,31/12/2023,PUBLIC TRANSPORT & PARKING,DISPUTE,CORPORATE TRAVEL MANAGEMENTLIMITED,PINV2348,48.9
DBT,ACAS,31/12/2023,PUBLIC TRANSPORT & PARKING,STRATEGY,CORPORATE TRAVEL MANAGEMENTLIMITED,PINV2348,59.6
DBT,ACAS,31/12/2023,PUBLIC TRANSPORT & PARKING,DDAT,CORPORATE TRAVEL MANAGEMENTLIMITED,PINV2348,75
DBT,ACAS,31/12/2023,HOTEL EXPENSES,DDAT,CORPORATE TRAVEL MANAGEMENTLIMITED,PINV2348,144.9
DBT,ACAS,31/12/2023,PUBLIC TRANSPORT & PARKING,DDAT,CORPORATE TRAVEL MANAGEMENTLIMITED,PINV2348,48.9
DBT,ACAS,31/12/2023,HOTEL EXPENSES,ADVICE,CORPORATE TRAVEL MANAGEMENTLIMITED,PINV2348,52.57
DBT,ACAS,31/12/2023,PUBLIC TRANSPORT & PARKING,ADVICE,CORPORATE TRAVEL MANAGEMENTLIMITED,PINV2348,-86
DBT,ACAS,31/12/2023,PUBLIC TRANSPORT & PARKING,DISPUTE,CORPORATE TRAVEL MANAGEMENTLIMITED,PINV2348,209.1
DBT,ACAS,31/12/2023,PUBLIC TRANSPORT & PARKING,ADVICE,CORPORATE TRAVEL MANAGEMENTLIMITED,PINV2348,56.8
DBT,ACAS,31/12/2023,PUBLIC TRANSPORT & PARKING,DISPUTE,CORPORATE TRAVEL MANAGEMENTLIMITED,PINV2348,90.9
DBT,ACAS,31/12/2023,PUBLIC TRANSPORT & PARKING,DISPUTE,CORPORATE TRAVEL MANAGEMENTLIMITED,PINV2348,122.3
DBT,ACAS,31/12/2023,PUBLIC TRANSPORT & PARKING,ADVICE,CORPORATE TRAVEL MANAGEMENTLIMITED,PINV2348,-13.6
DBT,ACAS,31/12/2023,PUBLIC TRANSPORT & PARKING,ADVICE,CORPORATE TRAVEL MANAGEMENTLIMITED,PINV2348,-110.7
DBT,ACAS,31/12/2023,PUBLIC TRANSPORT & PARKING,ADVICE,CORPORATE TRAVEL MANAGEMENTLIMITED,PINV2348,-105.7
DBT,ACAS,31/12/2023,PUBLIC TRANSPORT & PARKING,F&G,CORPORATE TRAVEL MANAGEMENTLIMITED,PINV2348,-195
DBT,ACAS,31/12/2023,PUBLIC TRANSPORT & PARKING,STRATEGY,CORPORATE TRAVEL MANAGEMENTLIMITED,PINV2348,139.1
DBT,ACAS,31/12/2023,PUBLIC TRANSPORT & PARKING,STRATEGY,CORPORATE TRAVEL MANAGEMENTLIMITED,PINV2348,46.35
DBT,ACAS,31/12/2023,PUBLIC TRANSPORT & PARKING,ODHR,CORPORATE TRAVEL MANAGEMENTLIMITED,PINV2348,152
DBT,ACAS,31/12/2023,PUBLIC TRANSPORT & PARKING,STRATEGY,CORPORATE TRAVEL MANAGEMENTLIMITED,PINV2348,40
DBT,ACAS,31/12/2023,PUBLIC TRANSPORT & PARKING,DISPUTE,CORPORATE TRAVEL MANAGEMENTLIMITED,PINV2348,265.3
DBT,ACAS,31/12/2023,PUBLIC TRANSPORT & PARKING,STRATEGY,CORPORATE TRAVEL MANAGEMENTLIMITED,PINV2348,132.8
DBT,ACAS,31/12/2023,PUBLIC TRANSPORT & PARKING,STRATEGY,CORPORATE TRAVEL MANAGEMENTLIMITED,PINV2348,117.1
DBT,ACAS,31/12/2023,PUBLIC TRANSPORT & PARKING,ADVICE,CORPORATE TRAVEL MANAGEMENTLIMITED,PINV2348,-92.4
DBT,ACAS,31/12/2023,HOTEL EXPENSES,ADVICE,CORPORATE TRAVEL MANAGEMENTLIMITED,PINV2348,69.12
DBT,ACAS,31/12/2023,HOTEL EXPENSES,F&G,CORPORATE TRAVEL MANAGEMENTLIMITED,PINV2348,66.6
DBT,ACAS,31/12/2023,PUBLIC TRANSPORT & PARKING,F&G,CORPORATE TRAVEL MANAGEMENTLIMITED,PINV2348,95.2
DBT,ACAS,31/12/2023,PUBLIC TRANSPORT & PARKING,F&G,CORPORATE TRAVEL MANAGEMENTLIMITED,PINV2348,274
DBT,ACAS,31/12/2023,PUBLIC TRANSPORT & PARKING,ADVICE,CORPORATE TRAVEL MANAGEMENTLIMITED,PINV2348,44.2
DBT,ACAS,31/12/2023,PUBLIC TRANSPORT & PARKING,ADVICE,CORPORATE TRAVEL MANAGEMENTLIMITED,PINV2348,44.2
DBT,ACAS,31/12/2023,HOTEL EXPENSES,F&G,CORPORATE TRAVEL MANAGEMENTLIMITED,PINV2348,104
DBT,ACAS,31/12/2023,HOTEL EXPENSES,F&G,CORPORATE TRAVEL MANAGEMENTLIMITED,PINV2348,130
DBT,ACAS,31/12/2023,PUBLIC TRANSPORT & PARKING,DISPUTE,CORPORATE TRAVEL MANAGEMENTLIMITED,PINV2348,-15
DBT,ACAS,31/12/2023,PUBLIC TRANSPORT & PARKING,DISPUTE,CORPORATE TRAVEL MANAGEMENTLIMITED,PINV2348,-16
DBT,ACAS,31/12/2023,PUBLIC TRANSPORT & PARKING,F&G,CORPORATE TRAVEL MANAGEMENTLIMITED,PINV2348,160.1
DBT,ACAS,31/12/2023,HOTEL EXPENSES,ADVICE,CORPORATE TRAVEL MANAGEMENTLIMITED,PINV2348,75.95
DBT,ACAS,31/12/2023,HOTEL EXPENSES,ODHR,CORPORATE TRAVEL MANAGEMENTLIMITED,PINV2348,152.15
DBT,ACAS,31/12/2023,PUBLIC TRANSPORT & PARKING,STRATEGY,CORPORATE TRAVEL MANAGEMENTLIMITED,PINV2348,95
DBT,ACAS,31/12/2023,PUBLIC TRANSPORT & PARKING,STRATEGY,CORPORATE TRAVEL MANAGEMENTLIMITED,PINV2348,95
DBT,ACAS,31/12/2023,HOTEL EXPENSES,DISPUTE,CORPORATE TRAVEL MANAGEMENTLIMITED,PINV2348,202
DBT,ACAS,31/12/2023,PUBLIC TRANSPORT & PARKING,ODHR,CORPORATE TRAVEL MANAGEMENTLIMITED,PINV2348,154
DBT,ACAS,31/12/2023,PUBLIC TRANSPORT & PARKING,DISPUTE,CORPORATE TRAVEL MANAGEMENTLIMITED,PINV2348,-6.2
DBT,ACAS,31/12/2023,PUBLIC TRANSPORT & PARKING,F&G,CORPORATE TRAVEL MANAGEMENTLIMITED,PINV2348,-269
DBT,ACAS,31/12/2023,PUBLIC TRANSPORT & PARKING,DISPUTE,CORPORATE TRAVEL MANAGEMENTLIMITED,PINV2348,-108
DBT,ACAS,31/12/2023,PUBLIC TRANSPORT & PARKING,STRATEGY,CORPORATE TRAVEL MANAGEMENTLIMITED,PINV2348,-10.2
DBT,ACAS,31/12/2023,PUBLIC TRANSPORT & PARKING,DISPUTE,CORPORATE TRAVEL MANAGEMENTLIMITED,PINV2348,-103
DBT,ACAS,31/12/2023,PUBLIC TRANSPORT & PARKING,DISPUTE,CORPORATE TRAVEL MANAGEMENTLIMITED,PINV2348,-47.5
DBT,ACAS,31/12/2023,PUBLIC TRANSPORT & PARKING,F&G,CORPORATE TRAVEL MANAGEMENTLIMITED,PINV2348,-104.5
DBT,ACAS,31/12/2023,PUBLIC TRANSPORT & PARKING,ODHR,CORPORATE TRAVEL MANAGEMENTLIMITED,PINV2348,-92.4
DBT,ACAS,31/12/2023,PUBLIC TRANSPORT & PARKING,DISPUTE,CORPORATE TRAVEL MANAGEMENTLIMITED,PINV2348,-83.9
DBT,ACAS,31/12/2023,PUBLIC TRANSPORT & PARKING,DISPUTE,CORPORATE TRAVEL MANAGEMENTLIMITED,PINV2348,-92.4
DBT,ACAS,31/12/2023,PUBLIC TRANSPORT & PARKING,ADVICE,CORPORATE TRAVEL MANAGEMENTLIMITED,PINV2348,-9.9
DBT,ACAS,31/12/2023,PUBLIC TRANSPORT & PARKING,STRATEGY,CORPORATE TRAVEL MANAGEMENTLIMITED,PINV2348,141.24
DBT,ACAS,31/12/2023,PUBLIC TRANSPORT & PARKING,ODHR,CORPORATE TRAVEL MANAGEMENTLIMITED,PINV2348,-106.7
DBT,ACAS,31/12/2023,PUBLIC TRANSPORT & PARKING,DISPUTE,CORPORATE TRAVEL MANAGEMENTLIMITED,PINV2348,-35
DBT,ACAS,31/12/2023,PUBLIC TRANSPORT & PARKING,ODHR,CORPORATE TRAVEL MANAGEMENTLIMITED,PINV2348,-99.3
DBT,ACAS,16/02/2024,STAFF RECRUITMENT COSTS,ODHR,CABINET OFFICE,POIN2349,558.6
DBT,ACAS,09/02/2024,EXTERNAL LEARNING,ODHR,REVOLUTION EVENTS LTD,POIN2350,870
DBT,ACAS,31/01/2024,PUBLIC TRANSPORT & PARKING,STRATEGY,CORPORATE TRAVEL MANAGEMENTLIMITED,PINV2350,184.7
DBT,ACAS,31/01/2024,PUBLIC TRANSPORT & PARKING,STRATEGY,CORPORATE TRAVEL MANAGEMENTLIMITED,PINV2350,79
DBT,ACAS,31/01/2024,PUBLIC TRANSPORT & PARKING,F&G,CORPORATE TRAVEL MANAGEMENTLIMITED,PINV2350,286.4
DBT,ACAS,31/01/2024,PUBLIC TRANSPORT & PARKING,DDAT,CORPORATE TRAVEL MANAGEMENTLIMITED,PINV2350,66.6
DBT,ACAS,31/01/2024,PUBLIC TRANSPORT & PARKING,ADVICE,CORPORATE TRAVEL MANAGEMENTLIMITED,PINV2350,44.8
DBT,ACAS,31/01/2024,PUBLIC TRANSPORT & PARKING,ADVICE,CORPORATE TRAVEL MANAGEMENTLIMITED,PINV2350,44.8
DBT,ACAS,31/01/2024,PUBLIC TRANSPORT & PARKING,ADVICE,CORPORATE TRAVEL MANAGEMENTLIMITED,PINV2350,44.8
DBT,ACAS,31/01/2024,PUBLIC TRANSPORT & PARKING,ADVICE,CORPORATE TRAVEL MANAGEMENTLIMITED,PINV2350,44.8
DBT,ACAS,31/01/2024,PUBLIC TRANSPORT & PARKING,ADVICE,CORPORATE TRAVEL MANAGEMENTLIMITED,PINV2350,44.8
DBT,ACAS,31/01/2024,PUBLIC TRANSPORT & PARKING,DDAT,CORPORATE TRAVEL MANAGEMENTLIMITED,PINV2350,105.8
DBT,ACAS,31/01/2024,PUBLIC TRANSPORT & PARKING,F&G,CORPORATE TRAVEL MANAGEMENTLIMITED,PINV2350,209
DBT,ACAS,31/01/2024,PUBLIC TRANSPORT & PARKING,ODHR,CORPORATE TRAVEL MANAGEMENTLIMITED,PINV2350,103.5
DBT,ACAS,31/01/2024,PUBLIC TRANSPORT & PARKING,STRATEGY,CORPORATE TRAVEL MANAGEMENTLIMITED,PINV2350,147.5
DBT,ACAS,31/01/2024,PUBLIC TRANSPORT & PARKING,F&G,CORPORATE TRAVEL MANAGEMENTLIMITED,PINV2350,282.4
DBT,ACAS,31/01/2024,PUBLIC TRANSPORT & PARKING,F&G,CORPORATE TRAVEL MANAGEMENTLIMITED,PINV2350,84.45
DBT,ACAS,31/01/2024,PUBLIC TRANSPORT & PARKING,ODHR,CORPORATE TRAVEL MANAGEMENTLIMITED,PINV2350,258.8
DBT,ACAS,31/01/2024,PUBLIC TRANSPORT & PARKING,F&G,CORPORATE TRAVEL MANAGEMENTLIMITED,PINV2350,83
DBT,ACAS,31/01/2024,PUBLIC TRANSPORT & PARKING,DISPUTE,CORPORATE TRAVEL MANAGEMENTLIMITED,PINV2350,85
DBT,ACAS,31/01/2024,PUBLIC TRANSPORT & PARKING,DISPUTE,CORPORATE TRAVEL MANAGEMENTLIMITED,PINV2350,42.8
DBT,ACAS,31/01/2024,PUBLIC TRANSPORT & PARKING,DISPUTE,CORPORATE TRAVEL MANAGEMENTLIMITED,PINV2350,42.8
DBT,ACAS,31/01/2024,HOTEL EXPENSES,DISPUTE,CORPORATE TRAVEL MANAGEMENTLIMITED,PINV2350,150.4
DBT,ACAS,31/01/2024,PUBLIC TRANSPORT & PARKING,ADVICE,CORPORATE TRAVEL MANAGEMENTLIMITED,PINV2350,91.8
DBT,ACAS,31/01/2024,HOTEL EXPENSES,STRATEGY,CORPORATE TRAVEL MANAGEMENTLIMITED,PINV2350,318
DBT,ACAS,31/01/2024,PUBLIC TRANSPORT & PARKING,DISPUTE,CORPORATE TRAVEL MANAGEMENTLIMITED,PINV2350,175.5
DBT,ACAS,31/01/2024,PUBLIC TRANSPORT & PARKING,F&G,CORPORATE TRAVEL MANAGEMENTLIMITED,PINV2350,38.1
DBT,ACAS,31/01/2024,PUBLIC TRANSPORT & PARKING,ODHR,CORPORATE TRAVEL MANAGEMENTLIMITED,PINV2350,184
DBT,ACAS,31/01/2024,PUBLIC TRANSPORT & PARKING,F&G,CORPORATE TRAVEL MANAGEMENTLIMITED,PINV2350,127.5
DBT,ACAS,31/01/2024,PUBLIC TRANSPORT & PARKING,DDAT,CORPORATE TRAVEL MANAGEMENTLIMITED,PINV2350,48.9
DBT,ACAS,31/01/2024,PUBLIC TRANSPORT & PARKING,F&G,CORPORATE TRAVEL MANAGEMENTLIMITED,PINV2350,391.6
DBT,ACAS,31/01/2024,PUBLIC TRANSPORT & PARKING,ODHR,CORPORATE TRAVEL MANAGEMENTLIMITED,PINV2350,221.9
DBT,ACAS,31/01/2024,PUBLIC TRANSPORT & PARKING,ODHR,CORPORATE TRAVEL MANAGEMENTLIMITED,PINV2350,184
DBT,ACAS,31/01/2024,PUBLIC TRANSPORT & PARKING,F&G,CORPORATE TRAVEL MANAGEMENTLIMITED,PINV2350,196
DBT,ACAS,31/01/2024,PUBLIC TRANSPORT & PARKING,DISPUTE,CORPORATE TRAVEL MANAGEMENTLIMITED,PINV2350,48.9
DBT,ACAS,31/01/2024,PUBLIC TRANSPORT & PARKING,DISPUTE,CORPORATE TRAVEL MANAGEMENTLIMITED,PINV2350,-120.7
DBT,ACAS,31/01/2024,PUBLIC TRANSPORT & PARKING,F&G,CORPORATE TRAVEL MANAGEMENTLIMITED,PINV2350,-126
DBT,ACAS,31/01/2024,PUBLIC TRANSPORT & PARKING,F&G,CORPORATE TRAVEL MANAGEMENTLIMITED,PINV2350,-269
DBT,ACAS,31/01/2024,PUBLIC TRANSPORT & PARKING,DDAT,CORPORATE TRAVEL MANAGEMENTLIMITED,PINV2350,-92.4
DBT,ACAS,31/01/2024,PUBLIC TRANSPORT & PARKING,DDAT,CORPORATE TRAVEL MANAGEMENTLIMITED,PINV2350,-87.4
DBT,ACAS,31/01/2024,PUBLIC TRANSPORT & PARKING,ADVICE,CORPORATE TRAVEL MANAGEMENTLIMITED,PINV2350,-187.8
DBT,ACAS,31/01/2024,PUBLIC TRANSPORT & PARKING,F&G,CORPORATE TRAVEL MANAGEMENTLIMITED,PINV2350,104.3
DBT,ACAS,31/01/2024,PUBLIC TRANSPORT & PARKING,F&G,CORPORATE TRAVEL MANAGEMENTLIMITED,PINV2350,104.3
DBT,ACAS,31/01/2024,PUBLIC TRANSPORT & PARKING,F&G,CORPORATE TRAVEL MANAGEMENTLIMITED,PINV2350,58
DBT,ACAS,31/01/2024,HOTEL EXPENSES,ADVICE,CORPORATE TRAVEL MANAGEMENTLIMITED,PINV2350,66.67
DBT,ACAS,31/01/2024,PUBLIC TRANSPORT & PARKING,STRATEGY,CORPORATE TRAVEL MANAGEMENTLIMITED,PINV2350,60
DBT,ACAS,31/01/2024,PUBLIC TRANSPORT & PARKING,STRATEGY,CORPORATE TRAVEL MANAGEMENTLIMITED,PINV2350,81
DBT,ACAS,31/01/2024,PUBLIC TRANSPORT & PARKING,ODHR,CORPORATE TRAVEL MANAGEMENTLIMITED,PINV2350,48.3
DBT,ACAS,31/01/2024,PUBLIC TRANSPORT & PARKING,DISPUTE,CORPORATE TRAVEL MANAGEMENTLIMITED,PINV2350,29.9
DBT,ACAS,31/01/2024,PUBLIC TRANSPORT & PARKING,ADVICE,CORPORATE TRAVEL MANAGEMENTLIMITED,PINV2350,99.5
DBT,ACAS,31/01/2024,PUBLIC TRANSPORT & PARKING,DDAT,CORPORATE TRAVEL MANAGEMENTLIMITED,PINV2350,258.8
DBT,ACAS,31/01/2024,PUBLIC TRANSPORT & PARKING,DISPUTE,CORPORATE TRAVEL MANAGEMENTLIMITED,PINV2350,108.5
DBT,ACAS,31/01/2024,PUBLIC TRANSPORT & PARKING,ODHR,CORPORATE TRAVEL MANAGEMENTLIMITED,PINV2350,-67.2
DBT,ACAS,31/01/2024,HOTEL EXPENSES,DISPUTE,CORPORATE TRAVEL MANAGEMENTLIMITED,PINV2350,123
DBT,ACAS,31/01/2024,PUBLIC TRANSPORT & PARKING,DISPUTE,CORPORATE TRAVEL MANAGEMENTLIMITED,PINV2350,60.5
DBT,ACAS,31/01/2024,PUBLIC TRANSPORT & PARKING,DISPUTE,CORPORATE TRAVEL MANAGEMENTLIMITED,PINV2350,71.1
DBT,ACAS,31/01/2024,PUBLIC TRANSPORT & PARKING,ADVICE,CORPORATE TRAVEL MANAGEMENTLIMITED,PINV2350,326.6
DBT,ACAS,31/01/2024,PUBLIC TRANSPORT & PARKING,ADVICE,CORPORATE TRAVEL MANAGEMENTLIMITED,PINV2350,54.6
DBT,ACAS,31/01/2024,PUBLIC TRANSPORT & PARKING,ADVICE,CORPORATE TRAVEL MANAGEMENTLIMITED,PINV2350,326.6
DBT,ACAS,31/01/2024,PUBLIC TRANSPORT & PARKING,DDAT,CORPORATE TRAVEL MANAGEMENTLIMITED,PINV2350,144
DBT,ACAS,31/01/2024,PUBLIC TRANSPORT & PARKING,F&G,CORPORATE TRAVEL MANAGEMENTLIMITED,PINV2350,29.4
DBT,ACAS,31/01/2024,PUBLIC TRANSPORT & PARKING,DDAT,CORPORATE TRAVEL MANAGEMENTLIMITED,PINV2350,107
DBT,ACAS,31/01/2024,PUBLIC TRANSPORT & PARKING,ODHR,CORPORATE TRAVEL MANAGEMENTLIMITED,PINV2350,221.9
DBT,ACAS,31/01/2024,PUBLIC TRANSPORT & PARKING,F&G,CORPORATE TRAVEL MANAGEMENTLIMITED,PINV2350,199.5
DBT,ACAS,31/01/2024,PUBLIC TRANSPORT & PARKING,DISPUTE,CORPORATE TRAVEL MANAGEMENTLIMITED,PINV2350,40.8
DBT,ACAS,31/01/2024,PUBLIC TRANSPORT & PARKING,ODHR,CORPORATE TRAVEL MANAGEMENTLIMITED,PINV2350,92.2
DBT,ACAS,31/01/2024,PUBLIC TRANSPORT & PARKING,DDAT,CORPORATE TRAVEL MANAGEMENTLIMITED,PINV2350,17.9
DBT,ACAS,31/01/2024,PUBLIC TRANSPORT & PARKING,DDAT,CORPORATE TRAVEL MANAGEMENTLIMITED,PINV2350,17.9
DBT,ACAS,31/01/2024,PUBLIC TRANSPORT & PARKING,ODHR,CORPORATE TRAVEL MANAGEMENTLIMITED,PINV2350,153.4
DBT,ACAS,31/01/2024,PUBLIC TRANSPORT & PARKING,DISPUTE,CORPORATE TRAVEL MANAGEMENTLIMITED,PINV2350,35.4
DBT,ACAS,31/01/2024,PUBLIC TRANSPORT & PARKING,STRATEGY,CORPORATE TRAVEL MANAGEMENTLIMITED,PINV2350,95
DBT,ACAS,31/01/2024,PUBLIC TRANSPORT & PARKING,DISPUTE,CORPORATE TRAVEL MANAGEMENTLIMITED,PINV2350,48.9
DBT,ACAS,31/01/2024,PUBLIC TRANSPORT & PARKING,DISPUTE,CORPORATE TRAVEL MANAGEMENTLIMITED,PINV2350,72.2
DBT,ACAS,31/01/2024,PUBLIC TRANSPORT & PARKING,ADVICE,CORPORATE TRAVEL MANAGEMENTLIMITED,PINV2350,170.3
DBT,ACAS,31/01/2024,PUBLIC TRANSPORT & PARKING,STRATEGY,CORPORATE TRAVEL MANAGEMENTLIMITED,PINV2350,25
DBT,ACAS,31/01/2024,PUBLIC TRANSPORT & PARKING,STRATEGY,CORPORATE TRAVEL MANAGEMENTLIMITED,PINV2350,35
DBT,ACAS,31/01/2024,PUBLIC TRANSPORT & PARKING,STRATEGY,CORPORATE TRAVEL MANAGEMENTLIMITED,PINV2350,38
DBT,ACAS,31/01/2024,HOTEL EXPENSES,STRATEGY,CORPORATE TRAVEL MANAGEMENTLIMITED,PINV2350,244
DBT,ACAS,31/01/2024,PUBLIC TRANSPORT & PARKING,DISPUTE,CORPORATE TRAVEL MANAGEMENTLIMITED,PINV2350,50.4
DBT,ACAS,31/01/2024,PUBLIC TRANSPORT & PARKING,STRATEGY,CORPORATE TRAVEL MANAGEMENTLIMITED,PINV2350,131.1
DBT,ACAS,31/01/2024,PUBLIC TRANSPORT & PARKING,DISPUTE,CORPORATE TRAVEL MANAGEMENTLIMITED,PINV2350,59.8
DBT,ACAS,31/01/2024,PUBLIC TRANSPORT & PARKING,ADVICE,CORPORATE TRAVEL MANAGEMENTLIMITED,PINV2350,14.9
DBT,ACAS,31/01/2024,PUBLIC TRANSPORT & PARKING,DISPUTE,CORPORATE TRAVEL MANAGEMENTLIMITED,PINV2350,70.15
DBT,ACAS,31/01/2024,HOTEL EXPENSES,STRATEGY,CORPORATE TRAVEL MANAGEMENTLIMITED,PINV2350,40.99
DBT,ACAS,31/01/2024,HOTEL EXPENSES,STRATEGY,CORPORATE TRAVEL MANAGEMENTLIMITED,PINV2350,32.99
DBT,ACAS,31/01/2024,PUBLIC TRANSPORT & PARKING,DISPUTE,CORPORATE TRAVEL MANAGEMENTLIMITED,PINV2350,96.5
DBT,ACAS,31/01/2024,PUBLIC TRANSPORT & PARKING,F&G,CORPORATE TRAVEL MANAGEMENTLIMITED,PINV2350,173.4
DBT,ACAS,31/01/2024,PUBLIC TRANSPORT & PARKING,STRATEGY,CORPORATE TRAVEL MANAGEMENTLIMITED,PINV2350,17.2
DBT,ACAS,31/01/2024,PUBLIC TRANSPORT & PARKING,F&G,CORPORATE TRAVEL MANAGEMENTLIMITED,PINV2350,274
DBT,ACAS,31/01/2024,PUBLIC TRANSPORT & PARKING,ADVICE,CORPORATE TRAVEL MANAGEMENTLIMITED,PINV2350,49.1
DBT,ACAS,31/01/2024,PUBLIC TRANSPORT & PARKING,ADVICE,CORPORATE TRAVEL MANAGEMENTLIMITED,PINV2350,49.1
DBT,ACAS,31/01/2024,PUBLIC TRANSPORT & PARKING,ADVICE,CORPORATE TRAVEL MANAGEMENTLIMITED,PINV2350,46
DBT,ACAS,31/01/2024,PUBLIC TRANSPORT & PARKING,ADVICE,CORPORATE TRAVEL MANAGEMENTLIMITED,PINV2350,49.1
DBT,ACAS,31/01/2024,PUBLIC TRANSPORT & PARKING,ODHR,CORPORATE TRAVEL MANAGEMENTLIMITED,PINV2350,117
DBT,ACAS,31/01/2024,PUBLIC TRANSPORT & PARKING,ADVICE,CORPORATE TRAVEL MANAGEMENTLIMITED,PINV2350,49.1
DBT,ACAS,31/01/2024,PUBLIC TRANSPORT & PARKING,ADVICE,CORPORATE TRAVEL MANAGEMENTLIMITED,PINV2350,46
DBT,ACAS,31/01/2024,PUBLIC TRANSPORT & PARKING,ADVICE,CORPORATE TRAVEL MANAGEMENTLIMITED,PINV2350,-20.7
DBT,ACAS,31/01/2024,PUBLIC TRANSPORT & PARKING,ADVICE,CORPORATE TRAVEL MANAGEMENTLIMITED,PINV2350,-15.7
DBT,ACAS,31/01/2024,PUBLIC TRANSPORT & PARKING,ODHR,CORPORATE TRAVEL MANAGEMENTLIMITED,PINV2350,241.7
DBT,ACAS,31/01/2024,HOTEL EXPENSES,ADVICE,CORPORATE TRAVEL MANAGEMENTLIMITED,PINV2350,64.57
DBT,ACAS,31/01/2024,HOTEL EXPENSES,ODHR,CORPORATE TRAVEL MANAGEMENTLIMITED,PINV2350,82.5
DBT,ACAS,31/01/2024,PUBLIC TRANSPORT & PARKING,STRATEGY,CORPORATE TRAVEL MANAGEMENTLIMITED,PINV2350,6.85
DBT,ACAS,31/01/2024,PUBLIC TRANSPORT & PARKING,F&G,CORPORATE TRAVEL MANAGEMENTLIMITED,PINV2350,17.65
DBT,ACAS,31/01/2024,PUBLIC TRANSPORT & PARKING,ODHR,CORPORATE TRAVEL MANAGEMENTLIMITED,PINV2350,121.1
DBT,ACAS,31/01/2024,PUBLIC TRANSPORT & PARKING,F&G,CORPORATE TRAVEL MANAGEMENTLIMITED,PINV2350,52.1
DBT,ACAS,31/01/2024,PUBLIC TRANSPORT & PARKING,ADVICE,CORPORATE TRAVEL MANAGEMENTLIMITED,PINV2350,118.8
DBT,ACAS,31/01/2024,PUBLIC TRANSPORT & PARKING,ADVICE,CORPORATE TRAVEL MANAGEMENTLIMITED,PINV2350,118.8
DBT,ACAS,31/01/2024,PUBLIC TRANSPORT & PARKING,ADVICE,CORPORATE TRAVEL MANAGEMENTLIMITED,PINV2350,117.9
DBT,ACAS,31/01/2024,PUBLIC TRANSPORT & PARKING,ADVICE,CORPORATE TRAVEL MANAGEMENTLIMITED,PINV2350,256.8
DBT,ACAS,31/01/2024,PUBLIC TRANSPORT & PARKING,ADVICE,CORPORATE TRAVEL MANAGEMENTLIMITED,PINV2350,209.3
DBT,ACAS,31/01/2024,PUBLIC TRANSPORT & PARKING,DISPUTE,CORPORATE TRAVEL MANAGEMENTLIMITED,PINV2350,73
DBT,ACAS,31/01/2024,PUBLIC TRANSPORT & PARKING,DISPUTE,CORPORATE TRAVEL MANAGEMENTLIMITED,PINV2350,13.9
DBT,ACAS,31/01/2024,PUBLIC TRANSPORT & PARKING,DISPUTE,CORPORATE TRAVEL MANAGEMENTLIMITED,PINV2350,21.6
DBT,ACAS,31/01/2024,PUBLIC TRANSPORT & PARKING,ADVICE,CORPORATE TRAVEL MANAGEMENTLIMITED,PINV2350,100.9
DBT,ACAS,31/01/2024,PUBLIC TRANSPORT & PARKING,F&G,CORPORATE TRAVEL MANAGEMENTLIMITED,PINV2350,211.5
DBT,ACAS,31/01/2024,PUBLIC TRANSPORT & PARKING,STRATEGY,CORPORATE TRAVEL MANAGEMENTLIMITED,PINV2350,74.7
DBT,ACAS,31/01/2024,PUBLIC TRANSPORT & PARKING,DISPUTE,CORPORATE TRAVEL MANAGEMENTLIMITED,PINV2350,392.4
DBT,ACAS,31/01/2024,PUBLIC TRANSPORT & PARKING,ADVICE,CORPORATE TRAVEL MANAGEMENTLIMITED,PINV2350,117.9
DBT,ACAS,31/01/2024,PUBLIC TRANSPORT & PARKING,ODHR,CORPORATE TRAVEL MANAGEMENTLIMITED,PINV2350,190.4
DBT,ACAS,31/01/2024,PUBLIC TRANSPORT & PARKING,STRATEGY,CORPORATE TRAVEL MANAGEMENTLIMITED,PINV2350,31.6
DBT,ACAS,31/01/2024,PUBLIC TRANSPORT & PARKING,ODHR,CORPORATE TRAVEL MANAGEMENTLIMITED,PINV2350,102.2
DBT,ACAS,31/01/2024,PUBLIC TRANSPORT & PARKING,STRATEGY,CORPORATE TRAVEL MANAGEMENTLIMITED,PINV2350,133.8
DBT,ACAS,31/01/2024,PUBLIC TRANSPORT & PARKING,F&G,CORPORATE TRAVEL MANAGEMENTLIMITED,PINV2350,257.5
DBT,ACAS,31/01/2024,PUBLIC TRANSPORT & PARKING,DDAT,CORPORATE TRAVEL MANAGEMENTLIMITED,PINV2350,-138.9
DBT,ACAS,31/01/2024,PUBLIC TRANSPORT & PARKING,DDAT,CORPORATE TRAVEL MANAGEMENTLIMITED,PINV2350,-48.6
DBT,ACAS,31/01/2024,PUBLIC TRANSPORT & PARKING,ADVICE,CORPORATE TRAVEL MANAGEMENTLIMITED,PINV2350,-34.5
DBT,ACAS,31/01/2024,HOTEL EXPENSES,F&G,CORPORATE TRAVEL MANAGEMENTLIMITED,PINV2350,112.5
DBT,ACAS,31/01/2024,PUBLIC TRANSPORT & PARKING,DISPUTE,CORPORATE TRAVEL MANAGEMENTLIMITED,PINV2350,-37.8
DBT,ACAS,31/01/2024,PUBLIC TRANSPORT & PARKING,ADVICE,CORPORATE TRAVEL MANAGEMENTLIMITED,PINV2350,99.5
DBT,ACAS,31/01/2024,HOTEL EXPENSES,ADVICE,CORPORATE TRAVEL MANAGEMENTLIMITED,PINV2350,92.65
DBT,ACAS,31/01/2024,PUBLIC TRANSPORT & PARKING,ADVICE,CORPORATE TRAVEL MANAGEMENTLIMITED,PINV2350,48.2
DBT,ACAS,31/01/2024,PUBLIC TRANSPORT & PARKING,ADVICE,CORPORATE TRAVEL MANAGEMENTLIMITED,PINV2350,17.4
DBT,ACAS,31/01/2024,PUBLIC TRANSPORT & PARKING,ADVICE,CORPORATE TRAVEL MANAGEMENTLIMITED,PINV2350,45
DBT,ACAS,31/01/2024,PUBLIC TRANSPORT & PARKING,STRATEGY,CORPORATE TRAVEL MANAGEMENTLIMITED,PINV2350,59.6
DBT,ACAS,31/01/2024,PUBLIC TRANSPORT & PARKING,DISPUTE,CORPORATE TRAVEL MANAGEMENTLIMITED,PINV2350,46.5
DBT,ACAS,31/01/2024,PUBLIC TRANSPORT & PARKING,ADVICE,CORPORATE TRAVEL MANAGEMENTLIMITED,PINV2350,46.3
DBT,ACAS,31/01/2024,PUBLIC TRANSPORT & PARKING,ADVICE,CORPORATE TRAVEL MANAGEMENTLIMITED,PINV2350,32.6
DBT,ACAS,31/01/2024,PUBLIC TRANSPORT & PARKING,ADVICE,CORPORATE TRAVEL MANAGEMENTLIMITED,PINV2350,-92.7
DBT,ACAS,31/01/2024,HOTEL EXPENSES,STRATEGY,CORPORATE TRAVEL MANAGEMENTLIMITED,PINV2350,85
DBT,ACAS,31/01/2024,HOTEL EXPENSES,F&G,CORPORATE TRAVEL MANAGEMENTLIMITED,PINV2350,85
DBT,ACAS,31/01/2024,HOTEL EXPENSES,ODHR,CORPORATE TRAVEL MANAGEMENTLIMITED,PINV2350,109.65
DBT,ACAS,31/01/2024,HOTEL EXPENSES,DISPUTE,CORPORATE TRAVEL MANAGEMENTLIMITED,PINV2350,109.65
DBT,ACAS,31/01/2024,HOTEL EXPENSES,DDAT,CORPORATE TRAVEL MANAGEMENTLIMITED,PINV2350,150
DBT,ACAS,31/01/2024,HOTEL EXPENSES,DDAT,CORPORATE TRAVEL MANAGEMENTLIMITED,PINV2350,109.65
DBT,ACAS,31/01/2024,HOTEL EXPENSES,F&G,CORPORATE TRAVEL MANAGEMENTLIMITED,PINV2350,109.65
DBT,ACAS,31/01/2024,PUBLIC TRANSPORT & PARKING,ADVICE,CORPORATE TRAVEL MANAGEMENTLIMITED,PINV2350,42.8
DBT,ACAS,31/01/2024,PUBLIC TRANSPORT & PARKING,F&G,CORPORATE TRAVEL MANAGEMENTLIMITED,PINV2350,44.8
DBT,ACAS,31/01/2024,PUBLIC TRANSPORT & PARKING,STRATEGY,CORPORATE TRAVEL MANAGEMENTLIMITED,PINV2350,31.6
DBT,ACAS,31/01/2024,PUBLIC TRANSPORT & PARKING,ADVICE,CORPORATE TRAVEL MANAGEMENTLIMITED,PINV2350,208.8
DBT,ACAS,31/01/2024,PUBLIC TRANSPORT & PARKING,ADVICE,CORPORATE TRAVEL MANAGEMENTLIMITED,PINV2350,208.8
DBT,ACAS,31/01/2024,PUBLIC TRANSPORT & PARKING,F&G,CORPORATE TRAVEL MANAGEMENTLIMITED,PINV2350,217.55
DBT,ACAS,31/01/2024,PUBLIC TRANSPORT & PARKING,STRATEGY,CORPORATE TRAVEL MANAGEMENTLIMITED,PINV2350,393.8
DBT,ACAS,31/01/2024,PUBLIC TRANSPORT & PARKING,F&G,CORPORATE TRAVEL MANAGEMENTLIMITED,PINV2350,143.6
DBT,ACAS,31/01/2024,PUBLIC TRANSPORT & PARKING,F&G,CORPORATE TRAVEL MANAGEMENTLIMITED,PINV2350,143.6
DBT,ACAS,31/01/2024,PUBLIC TRANSPORT & PARKING,STRATEGY,CORPORATE TRAVEL MANAGEMENTLIMITED,PINV2350,237.5
DBT,ACAS,31/01/2024,PUBLIC TRANSPORT & PARKING,DISPUTE,CORPORATE TRAVEL MANAGEMENTLIMITED,PINV2350,188.8
DBT,ACAS,31/01/2024,PUBLIC TRANSPORT & PARKING,DISPUTE,CORPORATE TRAVEL MANAGEMENTLIMITED,PINV2350,13.4
DBT,ACAS,31/01/2024,PUBLIC TRANSPORT & PARKING,F&G,CORPORATE TRAVEL MANAGEMENTLIMITED,PINV2350,106
DBT,ACAS,31/01/2024,PUBLIC TRANSPORT & PARKING,DISPUTE,CORPORATE TRAVEL MANAGEMENTLIMITED,PINV2350,15.25
DBT,ACAS,31/01/2024,PUBLIC TRANSPORT & PARKING,DDAT,CORPORATE TRAVEL MANAGEMENTLIMITED,PINV2350,286.4
DBT,ACAS,31/01/2024,PUBLIC TRANSPORT & PARKING,F&G,CORPORATE TRAVEL MANAGEMENTLIMITED,PINV2350,169
DBT,ACAS,31/01/2024,PUBLIC TRANSPORT & PARKING,F&G,CORPORATE TRAVEL MANAGEMENTLIMITED,PINV2350,144
DBT,ACAS,31/01/2024,PUBLIC TRANSPORT & PARKING,ODHR,CORPORATE TRAVEL MANAGEMENTLIMITED,PINV2350,385.55
DBT,ACAS,31/01/2024,PUBLIC TRANSPORT & PARKING,ODHR,CORPORATE TRAVEL MANAGEMENTLIMITED,PINV2350,68.55
DBT,ACAS,31/01/2024,PUBLIC TRANSPORT & PARKING,DDAT,CORPORATE TRAVEL MANAGEMENTLIMITED,PINV2350,135.2
DBT,ACAS,31/01/2024,PUBLIC TRANSPORT & PARKING,STRATEGY,CORPORATE TRAVEL MANAGEMENTLIMITED,PINV2350,375.4
DBT,ACAS,31/01/2024,PUBLIC TRANSPORT & PARKING,ADVICE,CORPORATE TRAVEL MANAGEMENTLIMITED,PINV2350,56.8
DBT,ACAS,31/01/2024,PUBLIC TRANSPORT & PARKING,DISPUTE,CORPORATE TRAVEL MANAGEMENTLIMITED,PINV2350,106.5
DBT,ACAS,31/01/2024,PUBLIC TRANSPORT & PARKING,DISPUTE,CORPORATE TRAVEL MANAGEMENTLIMITED,PINV2350,107.45
DBT,ACAS,31/01/2024,PUBLIC TRANSPORT & PARKING,DDAT,CORPORATE TRAVEL MANAGEMENTLIMITED,PINV2350,47
DBT,ACAS,31/01/2024,PUBLIC TRANSPORT & PARKING,ODHR,CORPORATE TRAVEL MANAGEMENTLIMITED,PINV2350,96.6
DBT,ACAS,31/01/2024,HOTEL EXPENSES,STRATEGY,CORPORATE TRAVEL MANAGEMENTLIMITED,PINV2350,127.6
DBT,ACAS,31/01/2024,PUBLIC TRANSPORT & PARKING,DISPUTE,CORPORATE TRAVEL MANAGEMENTLIMITED,PINV2350,81.5
DBT,ACAS,31/01/2024,HOTEL EXPENSES,ADVICE,CORPORATE TRAVEL MANAGEMENTLIMITED,PINV2350,113.4
DBT,ACAS,31/01/2024,PUBLIC TRANSPORT & PARKING,STRATEGY,CORPORATE TRAVEL MANAGEMENTLIMITED,PINV2350,57.6
DBT,ACAS,31/01/2024,PUBLIC TRANSPORT & PARKING,ADVICE,CORPORATE TRAVEL MANAGEMENTLIMITED,PINV2350,299.4
DBT,ACAS,31/01/2024,HOTEL EXPENSES,ADVICE,CORPORATE TRAVEL MANAGEMENTLIMITED,PINV2350,75.21
DBT,ACAS,31/01/2024,PUBLIC TRANSPORT & PARKING,ODHR,CORPORATE TRAVEL MANAGEMENTLIMITED,PINV2350,222.6
DBT,ACAS,31/01/2024,PUBLIC TRANSPORT & PARKING,F&G,CORPORATE TRAVEL MANAGEMENTLIMITED,PINV2350,164.4
DBT,ACAS,31/01/2024,PUBLIC TRANSPORT & PARKING,DISPUTE,CORPORATE TRAVEL MANAGEMENTLIMITED,PINV2350,232.5
DBT,ACAS,31/01/2024,PUBLIC TRANSPORT & PARKING,F&G,CORPORATE TRAVEL MANAGEMENTLIMITED,PINV2350,215.4
DBT,ACAS,31/01/2024,PUBLIC TRANSPORT & PARKING,F&G,CORPORATE TRAVEL MANAGEMENTLIMITED,PINV2350,169
DBT,ACAS,31/01/2024,PUBLIC TRANSPORT & PARKING,F&G,CORPORATE TRAVEL MANAGEMENTLIMITED,PINV2350,144
DBT,ACAS,31/01/2024,PUBLIC TRANSPORT & PARKING,DISPUTE,CORPORATE TRAVEL MANAGEMENTLIMITED,PINV2350,42.8
DBT,ACAS,31/01/2024,PUBLIC TRANSPORT & PARKING,DISPUTE,CORPORATE TRAVEL MANAGEMENTLIMITED,PINV2350,42.8
DBT,ACAS,31/01/2024,PUBLIC TRANSPORT & PARKING,DISPUTE,CORPORATE TRAVEL MANAGEMENTLIMITED,PINV2350,17.8
DBT,ACAS,31/01/2024,PUBLIC TRANSPORT & PARKING,DISPUTE,CORPORATE TRAVEL MANAGEMENTLIMITED,PINV2350,11.7
DBT,ACAS,31/01/2024,PUBLIC TRANSPORT & PARKING,DISPUTE,CORPORATE TRAVEL MANAGEMENTLIMITED,PINV2350,82.45
DBT,ACAS,31/01/2024,PUBLIC TRANSPORT & PARKING,DISPUTE,CORPORATE TRAVEL MANAGEMENTLIMITED,PINV2350,107.45
DBT,ACAS,31/01/2024,PUBLIC TRANSPORT & PARKING,DISPUTE,CORPORATE TRAVEL MANAGEMENTLIMITED,PINV2350,150.6
DBT,ACAS,31/01/2024,HOTEL EXPENSES,ADVICE,CORPORATE TRAVEL MANAGEMENTLIMITED,PINV2350,59.33
DBT,ACAS,31/01/2024,PUBLIC TRANSPORT & PARKING,DISPUTE,CORPORATE TRAVEL MANAGEMENTLIMITED,PINV2350,50.4
DBT,ACAS,31/01/2024,PUBLIC TRANSPORT & PARKING,ADVICE,CORPORATE TRAVEL MANAGEMENTLIMITED,PINV2350,122
DBT,ACAS,31/01/2024,PUBLIC TRANSPORT & PARKING,F&G,CORPORATE TRAVEL MANAGEMENTLIMITED,PINV2350,46.95
DBT,ACAS,31/01/2024,PUBLIC TRANSPORT & PARKING,ADVICE,CORPORATE TRAVEL MANAGEMENTLIMITED,PINV2350,29.9
DBT,ACAS,31/01/2024,PUBLIC TRANSPORT & PARKING,ADVICE,CORPORATE TRAVEL MANAGEMENTLIMITED,PINV2350,170.3
DBT,ACAS,31/01/2024,PUBLIC TRANSPORT & PARKING,F&G,CORPORATE TRAVEL MANAGEMENTLIMITED,PINV2350,114.4
DBT,ACAS,31/01/2024,PUBLIC TRANSPORT & PARKING,ADVICE,CORPORATE TRAVEL MANAGEMENTLIMITED,PINV2350,121.2
DBT,ACAS,31/01/2024,HOTEL EXPENSES,F&G,CORPORATE TRAVEL MANAGEMENTLIMITED,PINV2350,98.56
DBT,ACAS,31/01/2024,PUBLIC TRANSPORT & PARKING,ADVICE,CORPORATE TRAVEL MANAGEMENTLIMITED,PINV2350,-79.2
DBT,ACAS,31/01/2024,PUBLIC TRANSPORT & PARKING,STRATEGY,CORPORATE TRAVEL MANAGEMENTLIMITED,PINV2350,-185.8
DBT,ACAS,31/01/2024,PUBLIC TRANSPORT & PARKING,ADVICE,CORPORATE TRAVEL MANAGEMENTLIMITED,PINV2350,-131.2
DBT,ACAS,31/01/2024,PUBLIC TRANSPORT & PARKING,DISPUTE,CORPORATE TRAVEL MANAGEMENTLIMITED,PINV2350,-281.4
DBT,ACAS,31/01/2024,PUBLIC TRANSPORT & PARKING,ADVICE,CORPORATE TRAVEL MANAGEMENTLIMITED,PINV2350,-153.7
DBT,ACAS,31/01/2024,PUBLIC TRANSPORT & PARKING,ADVICE,CORPORATE TRAVEL MANAGEMENTLIMITED,PINV2350,-153.7
DBT,ACAS,31/01/2024,PUBLIC TRANSPORT & PARKING,ADVICE,CORPORATE TRAVEL MANAGEMENTLIMITED,PINV2350,-32.5
DBT,ACAS,31/01/2024,PUBLIC TRANSPORT & PARKING,ADVICE,CORPORATE TRAVEL MANAGEMENTLIMITED,PINV2350,-153.7
DBT,ACAS,31/01/2024,PUBLIC TRANSPORT & PARKING,ADVICE,CORPORATE TRAVEL MANAGEMENTLIMITED,PINV2350,-153.7
DBT,ACAS,31/01/2024,PUBLIC TRANSPORT & PARKING,ADVICE,CORPORATE TRAVEL MANAGEMENTLIMITED,PINV2350,208.8
DBT,ACAS,31/01/2024,PUBLIC TRANSPORT & PARKING,ODHR,CORPORATE TRAVEL MANAGEMENTLIMITED,PINV2350,187.3
DBT,ACAS,31/01/2024,HOTEL EXPENSES,ADVICE,CORPORATE TRAVEL MANAGEMENTLIMITED,PINV2350,154.08
DBT,ACAS,31/01/2024,PUBLIC TRANSPORT & PARKING,ODHR,CORPORATE TRAVEL MANAGEMENTLIMITED,PINV2350,48.9
DBT,ACAS,31/01/2024,PUBLIC TRANSPORT & PARKING,F&G,CORPORATE TRAVEL MANAGEMENTLIMITED,PINV2350,189
DBT,ACAS,31/01/2024,PUBLIC TRANSPORT & PARKING,STRATEGY,CORPORATE TRAVEL MANAGEMENTLIMITED,PINV2350,384.5
DBT,ACAS,31/01/2024,PUBLIC TRANSPORT & PARKING,DDAT,CORPORATE TRAVEL MANAGEMENTLIMITED,PINV2350,113.5
DBT,ACAS,31/01/2024,PUBLIC TRANSPORT & PARKING,F&G,CORPORATE TRAVEL MANAGEMENTLIMITED,PINV2350,326.6
DBT,ACAS,31/01/2024,PUBLIC TRANSPORT & PARKING,DISPUTE,CORPORATE TRAVEL MANAGEMENTLIMITED,PINV2350,295.2
DBT,ACAS,31/01/2024,PUBLIC TRANSPORT & PARKING,ADVICE,CORPORATE TRAVEL MANAGEMENTLIMITED,PINV2350,158.2
DBT,ACAS,31/01/2024,PUBLIC TRANSPORT & PARKING,DISPUTE,CORPORATE TRAVEL MANAGEMENTLIMITED,PINV2350,343.4
DBT,ACAS,31/01/2024,PUBLIC TRANSPORT & PARKING,ODHR,CORPORATE TRAVEL MANAGEMENTLIMITED,PINV2350,201.1
DBT,ACAS,31/01/2024,HOTEL EXPENSES,F&G,CORPORATE TRAVEL MANAGEMENTLIMITED,PINV2350,294
DBT,ACAS,31/01/2024,HOTEL EXPENSES,F&G,CORPORATE TRAVEL MANAGEMENTLIMITED,PINV2350,199.2
DBT,ACAS,31/01/2024,HOTEL EXPENSES,F&G,CORPORATE TRAVEL MANAGEMENTLIMITED,PINV2350,147
DBT,ACAS,31/01/2024,HOTEL EXPENSES,ADVICE,CORPORATE TRAVEL MANAGEMENTLIMITED,PINV2350,176
DBT,ACAS,31/01/2024,HOTEL EXPENSES,ADVICE,CORPORATE TRAVEL MANAGEMENTLIMITED,PINV2350,148.68
DBT,ACAS,31/01/2024,HOTEL EXPENSES,ADVICE,CORPORATE TRAVEL MANAGEMENTLIMITED,PINV2350,110.4
DBT,ACAS,31/01/2024,HOTEL EXPENSES,DISPUTE,CORPORATE TRAVEL MANAGEMENTLIMITED,PINV2350,114.75
DBT,ACAS,31/01/2024,HOTEL EXPENSES,ADVICE,CORPORATE TRAVEL MANAGEMENTLIMITED,PINV2350,154.8
DBT,ACAS,31/01/2024,HOTEL EXPENSES,ADVICE,CORPORATE TRAVEL MANAGEMENTLIMITED,PINV2350,176
DBT,ACAS,31/01/2024,PUBLIC TRANSPORT & PARKING,DDAT,CORPORATE TRAVEL MANAGEMENTLIMITED,PINV2350,141
DBT,ACAS,31/01/2024,PUBLIC TRANSPORT & PARKING,DDAT,CORPORATE TRAVEL MANAGEMENTLIMITED,PINV2350,176.4
DBT,ACAS,31/01/2024,PUBLIC TRANSPORT & PARKING,F&G,CORPORATE TRAVEL MANAGEMENTLIMITED,PINV2350,106.5
DBT,ACAS,31/01/2024,PUBLIC TRANSPORT & PARKING,DDAT,CORPORATE TRAVEL MANAGEMENTLIMITED,PINV2350,187.7
DBT,ACAS,31/01/2024,PUBLIC TRANSPORT & PARKING,DDAT,CORPORATE TRAVEL MANAGEMENTLIMITED,PINV2350,70.5
DBT,ACAS,31/01/2024,PUBLIC TRANSPORT & PARKING,F&G,CORPORATE TRAVEL MANAGEMENTLIMITED,PINV2350,109.05
DBT,ACAS,31/01/2024,PUBLIC TRANSPORT & PARKING,DISPUTE,CORPORATE TRAVEL MANAGEMENTLIMITED,PINV2350,60.5
DBT,ACAS,31/01/2024,HOTEL EXPENSES,DDAT,CORPORATE TRAVEL MANAGEMENTLIMITED,PINV2350,147
DBT,ACAS,31/01/2024,HOTEL EXPENSES,ODHR,CORPORATE TRAVEL MANAGEMENTLIMITED,PINV2350,74.7
DBT,ACAS,31/01/2024,HOTEL EXPENSES,ADVICE,CORPORATE TRAVEL MANAGEMENTLIMITED,PINV2350,74.7
DBT,ACAS,31/01/2024,HOTEL EXPENSES,ADVICE,CORPORATE TRAVEL MANAGEMENTLIMITED,PINV2350,74.7
DBT,ACAS,31/01/2024,HOTEL EXPENSES,ADVICE,CORPORATE TRAVEL MANAGEMENTLIMITED,PINV2350,74.7
DBT,ACAS,31/01/2024,HOTEL EXPENSES,ADVICE,CORPORATE TRAVEL MANAGEMENTLIMITED,PINV2350,147
DBT,ACAS,31/01/2024,HOTEL EXPENSES,STRATEGY,CORPORATE TRAVEL MANAGEMENTLIMITED,PINV2350,147
DBT,ACAS,31/01/2024,HOTEL EXPENSES,DISPUTE,CORPORATE TRAVEL MANAGEMENTLIMITED,PINV2350,147
DBT,ACAS,31/01/2024,HOTEL EXPENSES,ADVICE,CORPORATE TRAVEL MANAGEMENTLIMITED,PINV2350,74.7
DBT,ACAS,31/01/2024,HOTEL EXPENSES,F&G,CORPORATE TRAVEL MANAGEMENTLIMITED,PINV2350,147
DBT,ACAS,31/01/2024,HOTEL EXPENSES,ADVICE,CORPORATE TRAVEL MANAGEMENTLIMITED,PINV2350,81
DBT,ACAS,31/01/2024,HOTEL EXPENSES,ADVICE,CORPORATE TRAVEL MANAGEMENTLIMITED,PINV2350,74.7
DBT,ACAS,31/01/2024,HOTEL EXPENSES,ADVICE,CORPORATE TRAVEL MANAGEMENTLIMITED,PINV2350,74.7
DBT,ACAS,31/01/2024,HOTEL EXPENSES,STRATEGY,CORPORATE TRAVEL MANAGEMENTLIMITED,PINV2350,147
DBT,ACAS,31/01/2024,PUBLIC TRANSPORT & PARKING,STRATEGY,CORPORATE TRAVEL MANAGEMENTLIMITED,PINV2350,166.3
DBT,ACAS,31/01/2024,PUBLIC TRANSPORT & PARKING,STRATEGY,CORPORATE TRAVEL MANAGEMENTLIMITED,PINV2350,184.7
DBT,ACAS,31/01/2024,PUBLIC TRANSPORT & PARKING,DDAT,CORPORATE TRAVEL MANAGEMENTLIMITED,PINV2350,198
DBT,ACAS,31/01/2024,PUBLIC TRANSPORT & PARKING,STRATEGY,CORPORATE TRAVEL MANAGEMENTLIMITED,PINV2350,79
DBT,ACAS,31/01/2024,PUBLIC TRANSPORT & PARKING,ODHR,CORPORATE TRAVEL MANAGEMENTLIMITED,PINV2350,206.5
DBT,ACAS,31/01/2024,PUBLIC TRANSPORT & PARKING,ADVICE,CORPORATE TRAVEL MANAGEMENTLIMITED,PINV2350,34.4
DBT,ACAS,31/01/2024,PUBLIC TRANSPORT & PARKING,ADVICE,CORPORATE TRAVEL MANAGEMENTLIMITED,PINV2350,34.4
DBT,ACAS,31/01/2024,PUBLIC TRANSPORT & PARKING,ADVICE,CORPORATE TRAVEL MANAGEMENTLIMITED,PINV2350,34.4
DBT,ACAS,31/01/2024,PUBLIC TRANSPORT & PARKING,ADVICE,CORPORATE TRAVEL MANAGEMENTLIMITED,PINV2350,34.4
DBT,ACAS,31/01/2024,PUBLIC TRANSPORT & PARKING,ADVICE,CORPORATE TRAVEL MANAGEMENTLIMITED,PINV2350,34.4
DBT,ACAS,31/01/2024,PUBLIC TRANSPORT & PARKING,ODHR,CORPORATE TRAVEL MANAGEMENTLIMITED,PINV2350,85.6
DBT,ACAS,31/01/2024,HOTEL EXPENSES,ADVICE,CORPORATE TRAVEL MANAGEMENTLIMITED,PINV2350,84.17
DBT,ACAS,31/01/2024,PUBLIC TRANSPORT & PARKING,ODHR,CORPORATE TRAVEL MANAGEMENTLIMITED,PINV2350,54.95
DBT,ACAS,31/01/2024,PUBLIC TRANSPORT & PARKING,ADVICE,CORPORATE TRAVEL MANAGEMENTLIMITED,PINV2350,14.9
DBT,ACAS,31/01/2024,PUBLIC TRANSPORT & PARKING,DISPUTE,CORPORATE TRAVEL MANAGEMENTLIMITED,PINV2350,42.8
DBT,ACAS,31/01/2024,PUBLIC TRANSPORT & PARKING,DDAT,CORPORATE TRAVEL MANAGEMENTLIMITED,PINV2350,122.2
DBT,ACAS,31/01/2024,PUBLIC TRANSPORT & PARKING,ODHR,CORPORATE TRAVEL MANAGEMENTLIMITED,PINV2350,188.8
DBT,ACAS,31/01/2024,PUBLIC TRANSPORT & PARKING,F&G,CORPORATE TRAVEL MANAGEMENTLIMITED,PINV2350,113.9
DBT,ACAS,31/01/2024,PUBLIC TRANSPORT & PARKING,F&G,CORPORATE TRAVEL MANAGEMENTLIMITED,PINV2350,109.75
DBT,ACAS,31/01/2024,PUBLIC TRANSPORT & PARKING,F&G,CORPORATE TRAVEL MANAGEMENTLIMITED,PINV2350,134.05
DBT,ACAS,31/01/2024,PUBLIC TRANSPORT & PARKING,DDAT,CORPORATE TRAVEL MANAGEMENTLIMITED,PINV2350,126.2
DBT,ACAS,31/01/2024,PUBLIC TRANSPORT & PARKING,ADVICE,CORPORATE TRAVEL MANAGEMENTLIMITED,PINV2350,97.7
DBT,ACAS,31/01/2024,PUBLIC TRANSPORT & PARKING,F&G,CORPORATE TRAVEL MANAGEMENTLIMITED,PINV2350,38.1
DBT,ACAS,31/01/2024,PUBLIC TRANSPORT & PARKING,F&G,CORPORATE TRAVEL MANAGEMENTLIMITED,PINV2350,73.9
DBT,ACAS,31/01/2024,PUBLIC TRANSPORT & PARKING,F&G,CORPORATE TRAVEL MANAGEMENTLIMITED,PINV2350,134.3
DBT,ACAS,31/01/2024,PUBLIC TRANSPORT & PARKING,F&G,CORPORATE TRAVEL MANAGEMENTLIMITED,PINV2350,15.2
DBT,ACAS,31/01/2024,PUBLIC TRANSPORT & PARKING,ADVICE,CORPORATE TRAVEL MANAGEMENTLIMITED,PINV2350,50.4
DBT,ACAS,31/01/2024,PUBLIC TRANSPORT & PARKING,ADVICE,CORPORATE TRAVEL MANAGEMENTLIMITED,PINV2350,18
DBT,ACAS,31/01/2024,PUBLIC TRANSPORT & PARKING,ADVICE,CORPORATE TRAVEL MANAGEMENTLIMITED,PINV2350,18
DBT,ACAS,31/01/2024,PUBLIC TRANSPORT & PARKING,F&G,CORPORATE TRAVEL MANAGEMENTLIMITED,PINV2350,287.2
DBT,ACAS,31/01/2024,PUBLIC TRANSPORT & PARKING,F&G,CORPORATE TRAVEL MANAGEMENTLIMITED,PINV2350,214.5
DBT,ACAS,31/01/2024,PUBLIC TRANSPORT & PARKING,F&G,CORPORATE TRAVEL MANAGEMENTLIMITED,PINV2350,144
DBT,ACAS,31/01/2024,PUBLIC TRANSPORT & PARKING,F&G,CORPORATE TRAVEL MANAGEMENTLIMITED,PINV2350,214.5
DBT,ACAS,31/01/2024,PUBLIC TRANSPORT & PARKING,DISPUTE,CORPORATE TRAVEL MANAGEMENTLIMITED,PINV2350,198.9
DBT,ACAS,31/01/2024,PUBLIC TRANSPORT & PARKING,F&G,CORPORATE TRAVEL MANAGEMENTLIMITED,PINV2350,276
DBT,ACAS,31/01/2024,PUBLIC TRANSPORT & PARKING,F&G,CORPORATE TRAVEL MANAGEMENTLIMITED,PINV2350,147.4
DBT,ACAS,31/01/2024,HOTEL EXPENSES,STRATEGY,CORPORATE TRAVEL MANAGEMENTLIMITED,PINV2350,235.9
DBT,ACAS,31/01/2024,PUBLIC TRANSPORT & PARKING,DISPUTE,CORPORATE TRAVEL MANAGEMENTLIMITED,PINV2350,79.4
DBT,ACAS,31/01/2024,PUBLIC TRANSPORT & PARKING,DISPUTE,CORPORATE TRAVEL MANAGEMENTLIMITED,PINV2350,13.4
DBT,ACAS,31/01/2024,PUBLIC TRANSPORT & PARKING,DISPUTE,CORPORATE TRAVEL MANAGEMENTLIMITED,PINV2350,188.8
DBT,ACAS,31/01/2024,HOTEL EXPENSES,ODHR,CORPORATE TRAVEL MANAGEMENTLIMITED,PINV2350,168
DBT,ACAS,31/01/2024,PUBLIC TRANSPORT & PARKING,DISPUTE,CORPORATE TRAVEL MANAGEMENTLIMITED,PINV2350,127.8
DBT,ACAS,31/01/2024,HOTEL EXPENSES,DDAT,CORPORATE TRAVEL MANAGEMENTLIMITED,PINV2350,182
DBT,ACAS,31/01/2024,HOTEL EXPENSES,ADVICE,CORPORATE TRAVEL MANAGEMENTLIMITED,PINV2350,79.16
DBT,ACAS,31/01/2024,HOTEL EXPENSES,ADVICE,CORPORATE TRAVEL MANAGEMENTLIMITED,PINV2350,83.25
DBT,ACAS,31/01/2024,PUBLIC TRANSPORT & PARKING,ODHR,CORPORATE TRAVEL MANAGEMENTLIMITED,PINV2350,220.5
DBT,ACAS,31/01/2024,PUBLIC TRANSPORT & PARKING,DISPUTE,CORPORATE TRAVEL MANAGEMENTLIMITED,PINV2350,110.8
DBT,ACAS,31/01/2024,PUBLIC TRANSPORT & PARKING,F&G,CORPORATE TRAVEL MANAGEMENTLIMITED,PINV2350,218.1
DBT,ACAS,31/01/2024,HOTEL EXPENSES,STRATEGY,CORPORATE TRAVEL MANAGEMENTLIMITED,PINV2350,106.49
DBT,ACAS,31/01/2024,HOTEL EXPENSES,F&G,CORPORATE TRAVEL MANAGEMENTLIMITED,PINV2350,153
DBT,ACAS,31/01/2024,HOTEL EXPENSES,ODHR,CORPORATE TRAVEL MANAGEMENTLIMITED,PINV2350,94
DBT,ACAS,31/01/2024,HOTEL EXPENSES,ADVICE,CORPORATE TRAVEL MANAGEMENTLIMITED,PINV2350,110.95
DBT,ACAS,31/01/2024,PUBLIC TRANSPORT & PARKING,DISPUTE,CORPORATE TRAVEL MANAGEMENTLIMITED,PINV2350,14.9
DBT,ACAS,31/01/2024,PUBLIC TRANSPORT & PARKING,DISPUTE,CORPORATE TRAVEL MANAGEMENTLIMITED,PINV2350,14.9
DBT,ACAS,31/01/2024,PUBLIC TRANSPORT & PARKING,F&G,CORPORATE TRAVEL MANAGEMENTLIMITED,PINV2350,104.9
DBT,ACAS,31/01/2024,PUBLIC TRANSPORT & PARKING,F&G,CORPORATE TRAVEL MANAGEMENTLIMITED,PINV2350,67.95
DBT,ACAS,31/01/2024,PUBLIC TRANSPORT & PARKING,STRATEGY,CORPORATE TRAVEL MANAGEMENTLIMITED,PINV2350,209
DBT,ACAS,31/01/2024,PUBLIC TRANSPORT & PARKING,STRATEGY,CORPORATE TRAVEL MANAGEMENTLIMITED,PINV2350,32
DBT,ACAS,31/01/2024,PUBLIC TRANSPORT & PARKING,DISPUTE,CORPORATE TRAVEL MANAGEMENTLIMITED,PINV2350,326.6
DBT,ACAS,31/01/2024,PUBLIC TRANSPORT & PARKING,F&G,CORPORATE TRAVEL MANAGEMENTLIMITED,PINV2350,49.85
DBT,ACAS,31/01/2024,PUBLIC TRANSPORT & PARKING,DISPUTE,CORPORATE TRAVEL MANAGEMENTLIMITED,PINV2350,108.15
DBT,ACAS,31/01/2024,PUBLIC TRANSPORT & PARKING,F&G,CORPORATE TRAVEL MANAGEMENTLIMITED,PINV2350,276
DBT,ACAS,31/01/2024,PUBLIC TRANSPORT & PARKING,STRATEGY,CORPORATE TRAVEL MANAGEMENTLIMITED,PINV2350,213
DBT,ACAS,31/01/2024,PUBLIC TRANSPORT & PARKING,F&G,CORPORATE TRAVEL MANAGEMENTLIMITED,PINV2350,106.2
DBT,ACAS,31/01/2024,PUBLIC TRANSPORT & PARKING,F&G,CORPORATE TRAVEL MANAGEMENTLIMITED,PINV2350,165.8
DBT,ACAS,31/01/2024,HOTEL EXPENSES,ADVICE,CORPORATE TRAVEL MANAGEMENTLIMITED,PINV2350,272.07
DBT,ACAS,31/01/2024,HOTEL EXPENSES,ADVICE,CORPORATE TRAVEL MANAGEMENTLIMITED,PINV2350,275.73
DBT,ACAS,31/01/2024,HOTEL EXPENSES,ODHR,CORPORATE TRAVEL MANAGEMENTLIMITED,PINV2350,178
DBT,ACAS,31/01/2024,PUBLIC TRANSPORT & PARKING,DDAT,CORPORATE TRAVEL MANAGEMENTLIMITED,PINV2350,190.4
DBT,ACAS,31/01/2024,HOTEL EXPENSES,STRATEGY,CORPORATE TRAVEL MANAGEMENTLIMITED,PINV2350,153
DBT,ACAS,31/01/2024,PUBLIC TRANSPORT & PARKING,STRATEGY,CORPORATE TRAVEL MANAGEMENTLIMITED,PINV2350,220.5
DBT,ACAS,31/01/2024,PUBLIC TRANSPORT & PARKING,CO,CORPORATE TRAVEL MANAGEMENTLIMITED,PINV2350,235.6
DBT,ACAS,31/01/2024,PUBLIC TRANSPORT & PARKING,F&G,CORPORATE TRAVEL MANAGEMENTLIMITED,PINV2350,92.5
DBT,ACAS,31/01/2024,PUBLIC TRANSPORT & PARKING,F&G,CORPORATE TRAVEL MANAGEMENTLIMITED,PINV2350,75
DBT,ACAS,31/01/2024,PUBLIC TRANSPORT & PARKING,F&G,CORPORATE TRAVEL MANAGEMENTLIMITED,PINV2350,130
DBT,ACAS,31/01/2024,HOTEL EXPENSES,DDAT,CORPORATE TRAVEL MANAGEMENTLIMITED,PINV2350,271.8
DBT,ACAS,31/01/2024,HOTEL EXPENSES,DISPUTE,CORPORATE TRAVEL MANAGEMENTLIMITED,PINV2350,140.49
DBT,ACAS,16/02/2024,PROFESSIONAL FEES,DDAT,CABINET OFFICE,POIN2351,1814.8
DBT,ACAS,19/09/2023,POSTAGE,F&G,GOVERNMENT PROPERTY AGENCY,PINV2351,885.18
DBT,ACAS,21/02/2024,EVALUATION OF OPS ACTIVITIES,STRATEGY,NATIONAL CENTRE FOR SOCIAL RESEARCH,POIN2352,42000
DBT,ACAS,31/01/2024,RECOGNITION PAYMENTS,CENTRE,EDENRED (UK GROUP ) LTD,PINV2352,4725
DBT,ACAS,19/12/2023,VENUE HIRE (REC VAT),STRATEGY,RSA ADELPHI ENTERPRISES LTD,POIN2353,392.7
DBT,ACAS,08/02/2024,EXTERNAL LEARNING,ODHR,TOTAL POLITICS GROUP,POIN2354,300
DBT,ACAS,22/02/2024,AGENCY STAFF,DISPUTE,ALEXANDER MANN SOLUTIONS LTD,POIN2355,455.87
DBT,ACAS,31/01/2024,PHOTOCOPIERS,DDAT,Canon (UK) Ltd,PINV2355,2977.4
DBT,ACAS,31/01/2024,PHOTOCOPIERS,DDAT,Canon (UK) Ltd,PINV2355,330.82
DBT,ACAS,31/01/2024,PROFESSIONAL FEES,DDAT,Canon (UK) Ltd,PINV2355,300
DBT,ACAS,22/02/2024,CONTRACTOR OFF-PAYROLL IN IR35,DDAT,ALEXANDER MANN SOLUTIONS LTD,POIN2356,4095.36
DBT,ACAS,22/02/2024,CONTRACTOR OFF-PAYROLL IN IR35,DDAT,ALEXANDER MANN SOLUTIONS LTD,POIN2357,4300.5
DBT,ACAS,22/02/2024,CONTRACTOR OFF-PAYROLL IN IR35,DDAT,ALEXANDER MANN SOLUTIONS LTD,POIN2357,4300.5
DBT,ACAS,22/02/2024,CONTRACTOR OFF-PAYROLL IN IR35,DDAT,ALEXANDER MANN SOLUTIONS LTD,POIN2358,2646.24
DBT,ACAS,22/02/2024,AGENCY STAFF,DDAT,ALEXANDER MANN SOLUTIONS LTD,POIN2359,4311.48
DBT,ACAS,09/02/2024,REFUNDS,ADVICE,MENTAL HEALTH MATTERS,PINV2359,2350
DBT,ACAS,20/02/2024,PUBLICITY,STRATEGY,NLA MEDIA ACCESS LIMITED,POIN2360,743.62
DBT,ACAS,20/02/2024,PUBLICITY,STRATEGY,NLA MEDIA ACCESS LIMITED,POIN2360,8179.81
DBT,ACAS,22/02/2024,OTHER FEES TO OGD'S,STRATEGY,ALEXANDER MANN SOLUTIONS LTD,POIN2361,3079.62
DBT,ACAS,22/02/2024,OTHER FEES TO OGD'S,STRATEGY,ALEXANDER MANN SOLUTIONS LTD,POIN2361,3079.62
DBT,ACAS,16/02/2024,CHILDCARE VOUCHERS,F&G,EDENRED CHILDCARE VOUCHERS LTD,PINV2361,1549
DBT,ACAS,15/02/2024,RECOGNITION PAYMENTS,CENTRE,EDENRED (UK GROUP ) LTD,PINV2362,9225
DBT,ACAS,13/02/2024,EXTERNAL LEARNING,ODHR,KPMG LLP,POIN2362,2069.5
DBT,ACAS,23/02/2024,OTHER RESEARCH,STRATEGY,NATIONAL CENTRE FOR SOCIAL RESEARCH,POIN2363,30000
DBT,ACAS,25/01/2024,RATES,F&G,GOVERNMENT PROPERTY AGENCY,PINV2363,343.03
DBT,ACAS,22/02/2024,AGENCY STAFF,DISPUTE,ALEXANDER MANN SOLUTIONS LTD,POIN2364,648.68
DBT,ACAS,25/01/2024,RATES,F&G,GOVERNMENT PROPERTY AGENCY,PINV2364,16497.6
DBT,ACAS,25/01/2024,SERVICE CHARGES,F&G,GOVERNMENT PROPERTY AGENCY,PINV2364,24093.37
DBT,ACAS,22/02/2024,PROFESSIONAL FEES,ADVICE,SNAP SURVEYS LTD,POIN2365,765
DBT,ACAS,25/01/2024,SERVICE CHARGES,F&G,GOVERNMENT PROPERTY AGENCY,PINV2365,15594.08
DBT,ACAS,14/02/2024,EXTERNAL LEARNING,ODHR,THE RECRUITMENT EVENTS CO,POIN2366,357.6
DBT,ACAS,08/02/2024,EXTERNAL LEARNING,ODHR,TOTAL POLITICS GROUP,POIN2367,300
DBT,ACAS,25/01/2024,RATES,F&G,GOVERNMENT PROPERTY AGENCY,PINV2367,585.41
DBT,ACAS,16/02/2024,SOFTWARE & LICENCES,DDAT,DEPARTMENT FOR ENERGY SECURITY,PINV2368,1152.11
DBT,ACAS,08/02/2024,EXTERNAL LEARNING,ODHR,TOTAL POLITICS GROUP,POIN2368,1200
DBT,ACAS,23/02/2024,EXTERNAL LEARNING,ODHR,CONTENT DESIGN LONDON LTD,POIN2369,1006.8
DBT,ACAS,25/01/2024,RATES,F&G,GOVERNMENT PROPERTY AGENCY,PINV2369,45221.5
DBT,ACAS,25/01/2024,FACILITIES MANAGEMENT,F&G,GOVERNMENT PROPERTY AGENCY,PINV2369,25.74
DBT,ACAS,22/02/2024,EXTERNAL LEARNING - CSL,ODHR,KPMG LLP,POIN2370,1885.2
DBT,ACAS,25/01/2024,SERVICE CHARGES,F&G,GOVERNMENT PROPERTY AGENCY,PINV2370,1549.45
DBT,ACAS,25/01/2024,RATES,F&G,GOVERNMENT PROPERTY AGENCY,PINV2370,426.11
DBT,ACAS,25/01/2024,FACILITIES MANAGEMENT,F&G,GOVERNMENT PROPERTY AGENCY,PINV2370,693.08
DBT,ACAS,16/02/2024,EXTERNAL LEARNING,ODHR,TRACY MOUNTAIN CONSULTANCY LIMITED,POIN2371,650
DBT,ACAS,25/01/2024,FACILITIES MANAGEMENT,F&G,GOVERNMENT PROPERTY AGENCY,PINV2371,52907.96
DBT,ACAS,23/02/2024,EXTERNAL LEARNING,ODHR,PEOPLE RESULTS LTD,POIN2372,1512
DBT,ACAS,23/02/2024,SOFTWARE & LICENCES,DDAT,ZOOM VIDEO COMMUNICATIONS INC,POIN2373,2461.62
DBT,ACAS,23/02/2024,SOFTWARE & LICENCES,DDAT,ZOOM VIDEO COMMUNICATIONS INC,POIN2373,-2461.62
DBT,ACAS,26/02/2024,PROFESSIONAL FEES,F&G,GOVERNMENT PROPERTY AGENCY,POIN2374,360
DBT,ACAS,26/02/2024,PROFESSIONAL FEES,F&G,GOVERNMENT PROPERTY AGENCY,POIN2374,360
DBT,ACAS,26/02/2024,PROFESSIONAL FEES,F&G,GOVERNMENT PROPERTY AGENCY,POIN2374,360
DBT,ACAS,26/02/2024,PROFESSIONAL FEES,F&G,GOVERNMENT PROPERTY AGENCY,POIN2374,360
DBT,ACAS,26/02/2024,PROFESSIONAL FEES,F&G,GOVERNMENT PROPERTY AGENCY,POIN2374,360
DBT,ACAS,26/02/2024,PROFESSIONAL FEES,F&G,GOVERNMENT PROPERTY AGENCY,POIN2374,360
DBT,ACAS,26/02/2024,PROFESSIONAL FEES,F&G,GOVERNMENT PROPERTY AGENCY,POIN2374,-360
DBT,ACAS,26/02/2024,PROFESSIONAL FEES,F&G,GOVERNMENT PROPERTY AGENCY,POIN2374,-360
DBT,ACAS,26/02/2024,PROFESSIONAL FEES,F&G,GOVERNMENT PROPERTY AGENCY,POIN2374,-360
DBT,ACAS,26/02/2024,PROFESSIONAL FEES,F&G,GOVERNMENT PROPERTY AGENCY,POIN2374,-360
DBT,ACAS,26/02/2024,PROFESSIONAL FEES,F&G,GOVERNMENT PROPERTY AGENCY,POIN2374,-360
DBT,ACAS,26/02/2024,PROFESSIONAL FEES,F&G,GOVERNMENT PROPERTY AGENCY,POIN2374,-360
DBT,ACAS,16/02/2024,EXTERNAL LEARNING - CSL,ODHR,ERNST & YOUNG LLP,PINV2374,1323.61
DBT,ACAS,16/02/2024,COMPUTER HARDWARE,DDAT,SUMILLION LTD,POIN2375,397.2
DBT,ACAS,16/02/2024,COURIERS,DDAT,SUMILLION LTD,POIN2375,6
DBT,ACAS,02/10/2023,SOFTWARE & LICENCES,F&G,IRIS SOFTWARE LTD,PINV2375,308.72
DBT,ACAS,26/02/2024,TEAM MEETINGS,F&G,BARRAFINA,POIN2376,74.81
DBT,ACAS,26/02/2024,TEAM MEETINGS,F&G,BARRAFINA,POIN2376,836.54
DBT,ACAS,26/02/2024,TEAM MEETINGS,F&G,BARRAFINA,POIN2376,-74.81
DBT,ACAS,26/02/2024,TEAM MEETINGS,F&G,BARRAFINA,POIN2376,-836.54
DBT,ACAS,22/02/2024,REFUNDS,ADVICE,NASUWT,PINV2377,270
DBT,ACAS,23/02/2024,EXTERNAL LEARNING,ODHR,J B NICHOLLS,POIN2378,3400
DBT,ACAS,25/02/2024,HIRE CAR COSTS,DISPUTE,ENTERPRISE RENT-A-CAR,PINV2379,120.84
DBT,ACAS,25/02/2024,HIRE CAR COSTS,DDAT,ENTERPRISE RENT-A-CAR,PINV2379,108.53
DBT,ACAS,25/02/2024,HIRE CAR COSTS,DDAT,ENTERPRISE RENT-A-CAR,PINV2379,102.42
DBT,ACAS,25/02/2024,HIRE CAR COSTS,ADVICE,ENTERPRISE RENT-A-CAR,PINV2379,120.84
DBT,ACAS,25/02/2024,HIRE CAR COSTS,ADVICE,ENTERPRISE RENT-A-CAR,PINV2379,120.84
DBT,ACAS,25/02/2024,HIRE CAR COSTS,DISPUTE,ENTERPRISE RENT-A-CAR,PINV2379,110.45
DBT,ACAS,15/02/2024,EXTERNAL LEARNING,ODHR,TOTAL POLITICS GROUP,POIN2379,300
DBT,ACAS,20/02/2024,TELEPHONES,DDAT,BRITISH TELECOMMUNICATIONS PLC,POIN2380,7020
DBT,ACAS,20/02/2024,TELEPHONES,DDAT,BRITISH TELECOMMUNICATIONS PLC,POIN2380,7020
DBT,ACAS,20/02/2024,TELEPHONES,DDAT,BRITISH TELECOMMUNICATIONS PLC,POIN2380,7020
DBT,ACAS,20/02/2024,TELEPHONES,DDAT,BRITISH TELECOMMUNICATIONS PLC,POIN2380,5004.23
DBT,ACAS,20/02/2024,TELEPHONES,DDAT,BRITISH TELECOMMUNICATIONS PLC,POIN2380,1635.35
DBT,ACAS,25/02/2024,VENUE HIRE (REC VAT),ADVICE,Agiito,PINV2382,546
DBT,ACAS,25/02/2024,VENUE HIRE (REC VAT),DISPUTE,Agiito,PINV2382,700
DBT,ACAS,25/02/2024,CATERING,DISPUTE,Agiito,PINV2382,166.5
DBT,ACAS,25/02/2024,CATERING,DISPUTE,Agiito,PINV2382,49.5
DBT,ACAS,25/02/2024,TEAM MEETINGS,ADVICE,Agiito,PINV2382,600
DBT,ACAS,25/02/2024,VENUE HIRE (REC VAT),ADVICE,Agiito,PINV2382,350
DBT,ACAS,25/02/2024,VENUE HIRE (REC VAT),ADVICE,Agiito,PINV2382,185
DBT,ACAS,25/02/2024,CATERING,ADVICE,Agiito,PINV2382,160
DBT,ACAS,25/02/2024,CATERING,ADVICE,Agiito,PINV2382,105
DBT,ACAS,25/02/2024,VENUE HIRE (REC VAT),DISPUTE,Agiito,PINV2382,590
DBT,ACAS,25/02/2024,TEAM MEETINGS,ADVICE,Agiito,PINV2382,520
DBT,ACAS,25/02/2024,TEAM MEETINGS,ADVICE,Agiito,PINV2382,585
DBT,ACAS,25/02/2024,VENUE HIRE (REC VAT),ADVICE,Agiito,PINV2382,200
DBT,ACAS,25/02/2024,CATERING,ADVICE,Agiito,PINV2382,247
DBT,ACAS,25/02/2024,CATERING,ADVICE,Agiito,PINV2382,91
DBT,ACAS,23/02/2024,SOFTWARE & LICENCES,DDAT,ZOOM VIDEO COMMUNICATIONS INC,PINV2387,2051.35
DBT,ACAS,08/02/2024,EXTERNAL LEARNING,ODHR,TOTAL POLITICS GROUP,POIN2387,300
DBT,ACAS,26/02/2024,EXTERNAL LEARNING,ODHR,TOTAL POLITICS GROUP,POIN2388,150
DBT,ACAS,26/02/2024,EXTERNAL LEARNING,ODHR,TOTAL POLITICS GROUP,POIN2388,150
DBT,ACAS,26/02/2024,EXTERNAL LEARNING,ODHR,TOTAL POLITICS GROUP,POIN2388,-150
DBT,ACAS,26/02/2024,EXTERNAL LEARNING,ODHR,TOTAL POLITICS GROUP,POIN2388,-150
DBT,ACAS,28/02/2024,PHOTOCOPIERS,DDAT,Canon (UK) Ltd,PINV2389,1135.74
DBT,ACAS,28/02/2024,PHOTOCOPIERS,DDAT,Canon (UK) Ltd,PINV2389,126.19
DBT,ACAS,21/02/2024,PROFESSIONAL FEES,DDAT,UNIFY HOLDING UK 1 LIMITED,POIN2389,4930.79
DBT,ACAS,21/02/2024,SOFTWARE & LICENCES,DDAT,UNIFY HOLDING UK 1 LIMITED,POIN2390,1974.89
DBT,ACAS,21/02/2024,SOFTWARE & LICENCES,DDAT,UNIFY HOLDING UK 1 LIMITED,POIN2390,2406
DBT,ACAS,21/02/2024,SOFTWARE & LICENCES,DDAT,UNIFY HOLDING UK 1 LIMITED,POIN2390,9962.74
DBT,ACAS,21/02/2024,TELEPHONES,DDAT,UNIFY HOLDING UK 1 LIMITED,POIN2390,92.5
DBT,ACAS,21/02/2024,TELEPHONES,DDAT,UNIFY HOLDING UK 1 LIMITED,POIN2390,53.32
DBT,ACAS,27/02/2024,REFUNDS,ADVICE,SEVERN WASTE SERVICES LIMITED,PINV2391,295
DBT,ACAS,19/02/2024,GOVT SOLICITORS FEES,ADVICE,GOVERNMENT LEGAL DEPARTMENT,POIN2391,264.24
DBT,ACAS,22/02/2024,CONTRACTOR OFF-PAYROLL IN IR35,DDAT,ALEXANDER MANN SOLUTIONS LTD,POIN2392,2956.46
DBT,ACAS,01/02/2024,PROFESSIONAL FEES,DDAT,TISSKI LTD,POIN2393,7534
DBT,ACAS,26/02/2024,PROFESSIONAL FEES,F&G,SERCO LIMITED,POIN2394,2340
DBT,ACAS,26/02/2024,PROFESSIONAL FEES,F&G,SERCO LIMITED,POIN2394,-2340
DBT,ACAS,22/02/2024,TRAINERS & GUEST SPEAKERS,DISPUTE,THINK PRODUCTIVE LTD,POIN2395,2403.41
DBT,ACAS,27/02/2024,PROFESSIONAL FEES,DDAT,MATRIX BOOKING LIMITED,POIN2396,4800
DBT,ACAS,27/02/2024,OTHER PAYROLL COSTS,F&G,MHR INTERNATIONAL UK LTD,POIN2397,19170.6
DBT,ACAS,28/02/2024,MOBILE PHONES,DDAT,TELEFONICA UK LTD (O2),POIN2398,505.48
DBT,ACAS,28/02/2024,MOBILE PHONES,DDAT,TELEFONICA UK LTD (O2),POIN2398,56.16
DBT,ACAS,31/01/2024,CONTRACTOR OFF-PAYROLL IN IR35,DDAT,ALEXANDER MANN SOLUTIONS LTD,POIN2399,7391.16
DBT,ACAS,31/01/2024,AGENCY STAFF,DDAT,ALEXANDER MANN SOLUTIONS LTD,POIN2400,4311.48
DBT,ACAS,27/02/2024,OTHER RESEARCH,STRATEGY,UNIVERSITY OF CENTRAL LANCASHIRE,POIN2401,3267.6
DBT,ACAS,27/02/2024,OTHER RESEARCH,STRATEGY,UNIVERSITY OF CENTRAL LANCASHIRE,POIN2401,0.34
DBT,ACAS,31/01/2024,PROFESSIONAL FEES,ADVICE,LANGUAGE EMPIRE LTD,POIN2402,540
DBT,ACAS,31/01/2024,PROFESSIONAL FEES,DISPUTE,LANGUAGE EMPIRE LTD,POIN2402,810
DBT,ACAS,27/02/2024,EXTERNAL LEARNING,ODHR,BELIMINAL LLP,POIN2403,1500
DBT,ACAS,26/02/2024,EXTERNAL LEARNING,ODHR,MHR INTERNATIONAL UK LTD,POIN2404,460.8
DBT,ACAS,26/02/2024,EXTERNAL LEARNING,ODHR,MHR INTERNATIONAL UK LTD,POIN2405,460.8
DBT,ACAS,01/02/2024,PERSONAL EXPENSE,DELIVERY,NAME / DESCRIPTION WITHHELD,EXPS3042,969.39
DBT,ACAS,31/01/2024,PERSONAL EXPENSE,ODHR,NAME / DESCRIPTION WITHHELD,EXPS3043,12000
DBT,ACAS,31/01/2024,PERSONAL EXPENSE,DISPUTE,NAME / DESCRIPTION WITHHELD,EXPS3044,265.05
DBT,ACAS,31/01/2024,PERSONAL EXPENSE,DISPUTE,NAME / DESCRIPTION WITHHELD,EXPS3044,24
DBT,ACAS,31/01/2024,PERSONAL EXPENSE,DISPUTE,NAME / DESCRIPTION WITHHELD,EXPS3044,10
DBT,ACAS,31/01/2024,PERSONAL EXPENSE,DISPUTE,NAME / DESCRIPTION WITHHELD,EXPS3044,50
DBT,ACAS,31/01/2024,PERSONAL EXPENSE,DISPUTE,NAME / DESCRIPTION WITHHELD,EXPS3044,70
DBT,ACAS,02/02/2024,PERSONAL EXPENSE,ADVICE,NAME / DESCRIPTION WITHHELD,EXPS3057,303.3
DBT,ACAS,02/02/2024,PERSONAL EXPENSE,ADVICE,NAME / DESCRIPTION WITHHELD,EXPS3057,15.3
DBT,ACAS,02/02/2024,PERSONAL EXPENSE,ADVICE,NAME / DESCRIPTION WITHHELD,EXPS3057,30.4
DBT,ACAS,02/02/2024,PERSONAL EXPENSE,ADVICE,NAME / DESCRIPTION WITHHELD,EXPS3057,20
DBT,ACAS,02/02/2024,PERSONAL EXPENSE,ADVICE,NAME / DESCRIPTION WITHHELD,EXPS3057,20
DBT,ACAS,02/02/2024,PERSONAL EXPENSE,ADVICE,NAME / DESCRIPTION WITHHELD,EXPS3057,140
DBT,ACAS,02/02/2024,PERSONAL EXPENSE,ADVICE,NAME / DESCRIPTION WITHHELD,EXPS3057,10
DBT,ACAS,02/02/2024,PERSONAL EXPENSE,ADVICE,NAME / DESCRIPTION WITHHELD,EXPS3057,10
DBT,ACAS,05/02/2024,PERSONAL EXPENSE,ADVICE,NAME / DESCRIPTION WITHHELD,EXPS3063,123.6
DBT,ACAS,05/02/2024,PERSONAL EXPENSE,ADVICE,NAME / DESCRIPTION WITHHELD,EXPS3063,12.2
DBT,ACAS,05/02/2024,PERSONAL EXPENSE,ADVICE,NAME / DESCRIPTION WITHHELD,EXPS3063,2
DBT,ACAS,05/02/2024,PERSONAL EXPENSE,ADVICE,NAME / DESCRIPTION WITHHELD,EXPS3063,60
DBT,ACAS,05/02/2024,PERSONAL EXPENSE,ADVICE,NAME / DESCRIPTION WITHHELD,EXPS3063,5
DBT,ACAS,05/02/2024,PERSONAL EXPENSE,ADVICE,NAME / DESCRIPTION WITHHELD,EXPS3063,35
DBT,ACAS,05/02/2024,PERSONAL EXPENSE,ADVICE,NAME / DESCRIPTION WITHHELD,EXPS3063,20
DBT,ACAS,05/02/2024,PERSONAL EXPENSE,ADVICE,NAME / DESCRIPTION WITHHELD,EXPS3065,273.15
DBT,ACAS,05/02/2024,PERSONAL EXPENSE,ADVICE,NAME / DESCRIPTION WITHHELD,EXPS3065,30
DBT,ACAS,05/02/2024,PERSONAL EXPENSE,ADVICE,NAME / DESCRIPTION WITHHELD,EXPS3065,10
DBT,ACAS,05/02/2024,PERSONAL EXPENSE,ADVICE,NAME / DESCRIPTION WITHHELD,EXPS3069,261
DBT,ACAS,05/02/2024,PERSONAL EXPENSE,ADVICE,NAME / DESCRIPTION WITHHELD,EXPS3069,4
DBT,ACAS,05/02/2024,PERSONAL EXPENSE,ADVICE,NAME / DESCRIPTION WITHHELD,EXPS3069,16.5
DBT,ACAS,05/02/2024,PERSONAL EXPENSE,ADVICE,NAME / DESCRIPTION WITHHELD,EXPS3069,10
DBT,ACAS,05/02/2024,PERSONAL EXPENSE,ADVICE,NAME / DESCRIPTION WITHHELD,EXPS3069,10
DBT,ACAS,05/02/2024,PERSONAL EXPENSE,ADVICE,NAME / DESCRIPTION WITHHELD,EXPS3069,10
DBT,ACAS,05/02/2024,PERSONAL EXPENSE,ADVICE,NAME / DESCRIPTION WITHHELD,EXPS3069,25
DBT,ACAS,05/02/2024,PERSONAL EXPENSE,ADVICE,NAME / DESCRIPTION WITHHELD,EXPS3069,70
DBT,ACAS,07/02/2024,PERSONAL EXPENSE,ODHR,NAME / DESCRIPTION WITHHELD,EXPS3078,79.2
DBT,ACAS,07/02/2024,PERSONAL EXPENSE,ODHR,NAME / DESCRIPTION WITHHELD,EXPS3078,10
DBT,ACAS,07/02/2024,PERSONAL EXPENSE,ODHR,NAME / DESCRIPTION WITHHELD,EXPS3078,7.8
DBT,ACAS,07/02/2024,PERSONAL EXPENSE,ODHR,NAME / DESCRIPTION WITHHELD,EXPS3078,10
DBT,ACAS,07/02/2024,PERSONAL EXPENSE,ODHR,NAME / DESCRIPTION WITHHELD,EXPS3078,70
DBT,ACAS,07/02/2024,PERSONAL EXPENSE,ODHR,NAME / DESCRIPTION WITHHELD,EXPS3078,10
DBT,ACAS,07/02/2024,PERSONAL EXPENSE,ODHR,NAME / DESCRIPTION WITHHELD,EXPS3078,6.7
DBT,ACAS,07/02/2024,PERSONAL EXPENSE,ODHR,NAME / DESCRIPTION WITHHELD,EXPS3078,20
DBT,ACAS,07/02/2024,PERSONAL EXPENSE,ODHR,NAME / DESCRIPTION WITHHELD,EXPS3078,10
DBT,ACAS,07/02/2024,PERSONAL EXPENSE,ODHR,NAME / DESCRIPTION WITHHELD,EXPS3078,10
DBT,ACAS,07/02/2024,PERSONAL EXPENSE,ODHR,NAME / DESCRIPTION WITHHELD,EXPS3078,9
DBT,ACAS,07/02/2024,PERSONAL EXPENSE,ODHR,NAME / DESCRIPTION WITHHELD,EXPS3078,25
DBT,ACAS,07/02/2024,PERSONAL EXPENSE,ODHR,NAME / DESCRIPTION WITHHELD,EXPS3078,10
DBT,ACAS,07/02/2024,PERSONAL EXPENSE,ODHR,NAME / DESCRIPTION WITHHELD,EXPS3078,70
DBT,ACAS,07/02/2024,PERSONAL EXPENSE,ODHR,NAME / DESCRIPTION WITHHELD,EXPS3078,25
DBT,ACAS,12/02/2024,PERSONAL EXPENSE,ADVICE,NAME / DESCRIPTION WITHHELD,EXPS3092,249.75
DBT,ACAS,12/02/2024,PERSONAL EXPENSE,ADVICE,NAME / DESCRIPTION WITHHELD,EXPS3092,4.3
DBT,ACAS,12/02/2024,PERSONAL EXPENSE,ADVICE,NAME / DESCRIPTION WITHHELD,EXPS3092,11
DBT,ACAS,12/02/2024,PERSONAL EXPENSE,ADVICE,NAME / DESCRIPTION WITHHELD,EXPS3092,5.35
DBT,ACAS,12/02/2024,PERSONAL EXPENSE,ADVICE,NAME / DESCRIPTION WITHHELD,EXPS3092,13.6
DBT,ACAS,12/02/2024,PERSONAL EXPENSE,ADVICE,NAME / DESCRIPTION WITHHELD,EXPS3092,30
DBT,ACAS,12/02/2024,PERSONAL EXPENSE,ADVICE,NAME / DESCRIPTION WITHHELD,EXPS3092,20
DBT,ACAS,12/02/2024,PERSONAL EXPENSE,ADVICE,NAME / DESCRIPTION WITHHELD,EXPS3092,10
DBT,ACAS,12/02/2024,PERSONAL EXPENSE,ADVICE,NAME / DESCRIPTION WITHHELD,EXPS3092,70
DBT,ACAS,09/02/2024,PERSONAL EXPENSE,DISPUTE,NAME / DESCRIPTION WITHHELD,EXPS3098,62.9
DBT,ACAS,09/02/2024,PERSONAL EXPENSE,DISPUTE,NAME / DESCRIPTION WITHHELD,EXPS3098,12.6
DBT,ACAS,09/02/2024,PERSONAL EXPENSE,DISPUTE,NAME / DESCRIPTION WITHHELD,EXPS3098,25.2
DBT,ACAS,09/02/2024,PERSONAL EXPENSE,DISPUTE,NAME / DESCRIPTION WITHHELD,EXPS3098,12.6
DBT,ACAS,09/02/2024,PERSONAL EXPENSE,DISPUTE,NAME / DESCRIPTION WITHHELD,EXPS3098,177.75
DBT,ACAS,09/02/2024,PERSONAL EXPENSE,DISPUTE,NAME / DESCRIPTION WITHHELD,EXPS3098,129.36
DBT,ACAS,09/02/2024,PERSONAL EXPENSE,DISPUTE,NAME / DESCRIPTION WITHHELD,EXPS3098,86.3
DBT,ACAS,09/02/2024,PERSONAL EXPENSE,DISPUTE,NAME / DESCRIPTION WITHHELD,EXPS3098,20
DBT,ACAS,09/02/2024,PERSONAL EXPENSE,DISPUTE,NAME / DESCRIPTION WITHHELD,EXPS3098,5
DBT,ACAS,09/02/2024,PERSONAL EXPENSE,DISPUTE,NAME / DESCRIPTION WITHHELD,EXPS3098,35
DBT,ACAS,09/02/2024,PERSONAL EXPENSE,DISPUTE,NAME / DESCRIPTION WITHHELD,EXPS3098,5
DBT,ACAS,09/02/2024,PERSONAL EXPENSE,DISPUTE,NAME / DESCRIPTION WITHHELD,EXPS3098,35
DBT,ACAS,09/02/2024,PERSONAL EXPENSE,DISPUTE,NAME / DESCRIPTION WITHHELD,EXPS3098,25
DBT,ACAS,09/02/2024,PERSONAL EXPENSE,DISPUTE,NAME / DESCRIPTION WITHHELD,EXPS3098,10
DBT,ACAS,09/02/2024,PERSONAL EXPENSE,DISPUTE,NAME / DESCRIPTION WITHHELD,EXPS3098,20
DBT,ACAS,09/02/2024,PERSONAL EXPENSE,DISPUTE,NAME / DESCRIPTION WITHHELD,EXPS3098,10
DBT,ACAS,09/02/2024,PERSONAL EXPENSE,DISPUTE,NAME / DESCRIPTION WITHHELD,EXPS3098,10
DBT,ACAS,09/02/2024,PERSONAL EXPENSE,DISPUTE,NAME / DESCRIPTION WITHHELD,EXPS3098,10
DBT,ACAS,09/02/2024,PERSONAL EXPENSE,DISPUTE,NAME / DESCRIPTION WITHHELD,EXPS3098,10
DBT,ACAS,14/02/2024,PERSONAL EXPENSE,STRATEGY,NAME / DESCRIPTION WITHHELD,EXPS3107,20
DBT,ACAS,14/02/2024,PERSONAL EXPENSE,STRATEGY,NAME / DESCRIPTION WITHHELD,EXPS3107,5
DBT,ACAS,14/02/2024,PERSONAL EXPENSE,STRATEGY,NAME / DESCRIPTION WITHHELD,EXPS3107,35
DBT,ACAS,14/02/2024,PERSONAL EXPENSE,STRATEGY,NAME / DESCRIPTION WITHHELD,EXPS3107,10
DBT,ACAS,14/02/2024,PERSONAL EXPENSE,STRATEGY,NAME / DESCRIPTION WITHHELD,EXPS3107,5
DBT,ACAS,14/02/2024,PERSONAL EXPENSE,STRATEGY,NAME / DESCRIPTION WITHHELD,EXPS3107,25
DBT,ACAS,14/02/2024,PERSONAL EXPENSE,STRATEGY,NAME / DESCRIPTION WITHHELD,EXPS3107,15.2
DBT,ACAS,14/02/2024,PERSONAL EXPENSE,STRATEGY,NAME / DESCRIPTION WITHHELD,EXPS3107,10
DBT,ACAS,14/02/2024,PERSONAL EXPENSE,STRATEGY,NAME / DESCRIPTION WITHHELD,EXPS3107,70
DBT,ACAS,14/02/2024,PERSONAL EXPENSE,STRATEGY,NAME / DESCRIPTION WITHHELD,EXPS3107,25
DBT,ACAS,14/02/2024,PERSONAL EXPENSE,STRATEGY,NAME / DESCRIPTION WITHHELD,EXPS3107,45.1
DBT,ACAS,14/02/2024,PERSONAL EXPENSE,STRATEGY,NAME / DESCRIPTION WITHHELD,EXPS3107,11.2
DBT,ACAS,14/02/2024,PERSONAL EXPENSE,STRATEGY,NAME / DESCRIPTION WITHHELD,EXPS3107,5
DBT,ACAS,14/02/2024,PERSONAL EXPENSE,STRATEGY,NAME / DESCRIPTION WITHHELD,EXPS3107,35
DBT,ACAS,14/02/2024,PERSONAL EXPENSE,STRATEGY,NAME / DESCRIPTION WITHHELD,EXPS3107,25
DBT,ACAS,14/02/2024,PERSONAL EXPENSE,ADVICE,NAME / DESCRIPTION WITHHELD,EXPS3109,160.2
DBT,ACAS,14/02/2024,PERSONAL EXPENSE,ADVICE,NAME / DESCRIPTION WITHHELD,EXPS3109,86.4
DBT,ACAS,14/02/2024,PERSONAL EXPENSE,ADVICE,NAME / DESCRIPTION WITHHELD,EXPS3109,5
DBT,ACAS,14/02/2024,PERSONAL EXPENSE,ADVICE,NAME / DESCRIPTION WITHHELD,EXPS3109,5
DBT,ACAS,14/02/2024,PERSONAL EXPENSE,ADVICE,NAME / DESCRIPTION WITHHELD,EXPS3109,35
DBT,ACAS,14/02/2024,PERSONAL EXPENSE,ADVICE,NAME / DESCRIPTION WITHHELD,EXPS3109,5
DBT,ACAS,14/02/2024,PERSONAL EXPENSE,ADVICE,NAME / DESCRIPTION WITHHELD,EXPS3109,35
DBT,ACAS,14/02/2024,PERSONAL EXPENSE,ADVICE,NAME / DESCRIPTION WITHHELD,EXPS3109,10
DBT,ACAS,15/02/2024,PERSONAL EXPENSE,ADVICE,NAME / DESCRIPTION WITHHELD,EXPS3111,463.05
DBT,ACAS,15/02/2024,PERSONAL EXPENSE,ADVICE,NAME / DESCRIPTION WITHHELD,EXPS3111,28.8
DBT,ACAS,15/02/2024,PERSONAL EXPENSE,ADVICE,NAME / DESCRIPTION WITHHELD,EXPS3111,38.7
DBT,ACAS,15/02/2024,PERSONAL EXPENSE,ADVICE,NAME / DESCRIPTION WITHHELD,EXPS3111,22.5
DBT,ACAS,15/02/2024,PERSONAL EXPENSE,ADVICE,NAME / DESCRIPTION WITHHELD,EXPS3111,9
DBT,ACAS,15/02/2024,PERSONAL EXPENSE,ADVICE,NAME / DESCRIPTION WITHHELD,EXPS3111,8.5
DBT,ACAS,15/02/2024,PERSONAL EXPENSE,ADVICE,NAME / DESCRIPTION WITHHELD,EXPS3111,40
DBT,ACAS,15/02/2024,PERSONAL EXPENSE,ADVICE,NAME / DESCRIPTION WITHHELD,EXPS3111,30
DBT,ACAS,15/02/2024,PERSONAL EXPENSE,ADVICE,NAME / DESCRIPTION WITHHELD,EXPS3111,25
DBT,ACAS,15/02/2024,PERSONAL EXPENSE,ADVICE,NAME / DESCRIPTION WITHHELD,EXPS3111,5
DBT,ACAS,15/02/2024,PERSONAL EXPENSE,ADVICE,NAME / DESCRIPTION WITHHELD,EXPS3111,35
DBT,ACAS,14/02/2024,PERSONAL EXPENSE,STRATEGY,NAME / DESCRIPTION WITHHELD,EXPS3114,10
DBT,ACAS,14/02/2024,PERSONAL EXPENSE,STRATEGY,NAME / DESCRIPTION WITHHELD,EXPS3114,15
DBT,ACAS,14/02/2024,PERSONAL EXPENSE,STRATEGY,NAME / DESCRIPTION WITHHELD,EXPS3114,12.8
DBT,ACAS,14/02/2024,PERSONAL EXPENSE,STRATEGY,NAME / DESCRIPTION WITHHELD,EXPS3114,28.8
DBT,ACAS,14/02/2024,PERSONAL EXPENSE,STRATEGY,NAME / DESCRIPTION WITHHELD,EXPS3114,50.6
DBT,ACAS,14/02/2024,PERSONAL EXPENSE,STRATEGY,NAME / DESCRIPTION WITHHELD,EXPS3114,5
DBT,ACAS,14/02/2024,PERSONAL EXPENSE,STRATEGY,NAME / DESCRIPTION WITHHELD,EXPS3114,35
DBT,ACAS,14/02/2024,PERSONAL EXPENSE,STRATEGY,NAME / DESCRIPTION WITHHELD,EXPS3114,10
DBT,ACAS,14/02/2024,PERSONAL EXPENSE,STRATEGY,NAME / DESCRIPTION WITHHELD,EXPS3114,10
DBT,ACAS,14/02/2024,PERSONAL EXPENSE,STRATEGY,NAME / DESCRIPTION WITHHELD,EXPS3114,75
DBT,ACAS,14/02/2024,PERSONAL EXPENSE,STRATEGY,NAME / DESCRIPTION WITHHELD,EXPS3114,10
DBT,ACAS,14/02/2024,PERSONAL EXPENSE,STRATEGY,NAME / DESCRIPTION WITHHELD,EXPS3114,70
DBT,ACAS,21/02/2024,PERSONAL EXPENSE,DISPUTE,NAME / DESCRIPTION WITHHELD,EXPS3129,326.25
DBT,ACAS,21/02/2024,PERSONAL EXPENSE,DISPUTE,NAME / DESCRIPTION WITHHELD,EXPS3129,10
DBT,ACAS,21/02/2024,PERSONAL EXPENSE,DISPUTE,NAME / DESCRIPTION WITHHELD,EXPS3129,6
DBT,ACAS,21/02/2024,PERSONAL EXPENSE,DISPUTE,NAME / DESCRIPTION WITHHELD,EXPS3129,40
DBT,ACAS,21/02/2024,PERSONAL EXPENSE,DISPUTE,NAME / DESCRIPTION WITHHELD,EXPS3129,10
DBT,ACAS,21/02/2024,PERSONAL EXPENSE,DISPUTE,NAME / DESCRIPTION WITHHELD,EXPS3129,70
DBT,ACAS,21/02/2024,PERSONAL EXPENSE,DISPUTE,NAME / DESCRIPTION WITHHELD,EXPS3129,10
DBT,ACAS,21/02/2024,PERSONAL EXPENSE,DISPUTE,NAME / DESCRIPTION WITHHELD,EXPS3129,217.98
DBT,ACAS,21/02/2024,PERSONAL EXPENSE,DISPUTE,NAME / DESCRIPTION WITHHELD,EXPS3129,10
DBT,ACAS,23/02/2024,PERSONAL EXPENSE,ADVICE,NAME / DESCRIPTION WITHHELD,EXPS3131,164.25
DBT,ACAS,23/02/2024,PERSONAL EXPENSE,ADVICE,NAME / DESCRIPTION WITHHELD,EXPS3131,0.25
DBT,ACAS,23/02/2024,PERSONAL EXPENSE,ADVICE,NAME / DESCRIPTION WITHHELD,EXPS3131,15
DBT,ACAS,23/02/2024,PERSONAL EXPENSE,ADVICE,NAME / DESCRIPTION WITHHELD,EXPS3131,10
DBT,ACAS,23/02/2024,PERSONAL EXPENSE,ADVICE,NAME / DESCRIPTION WITHHELD,EXPS3131,25
DBT,ACAS,23/02/2024,PERSONAL EXPENSE,ADVICE,NAME / DESCRIPTION WITHHELD,EXPS3131,70
DBT,ACAS,29/02/2024,PERSONAL EXPENSE,CAC,NAME / DESCRIPTION WITHHELD,EXPS3150,262.96
DBT,ACAS,29/02/2024,PERSONAL EXPENSE,CAC,NAME / DESCRIPTION WITHHELD,EXPS3150,40.5
DBT,ACAS,29/02/2024,PERSONAL EXPENSE,CAC,NAME / DESCRIPTION WITHHELD,EXPS3150,165
DBT,ACAS,29/02/2024,PERSONAL EXPENSE,CAC,NAME / DESCRIPTION WITHHELD,EXPS3150,35
DBT,ACAS,29/02/2024,PERSONAL EXPENSE,CAC,NAME / DESCRIPTION WITHHELD,EXPS3150,5
DBT,ACAS,28/02/2024,PERSONAL EXPENSE,F&G,NAME / DESCRIPTION WITHHELD,EXPS3152,278.1
DBT,ACAS,28/02/2024,PERSONAL EXPENSE,F&G,NAME / DESCRIPTION WITHHELD,EXPS3152,33.6
DBT,ACAS,28/02/2024,PERSONAL EXPENSE,F&G,NAME / DESCRIPTION WITHHELD,EXPS3152,20
